Workbook

Sheet Resumen
B1: CORTE SUPREMA DE JUSTICIA - PROGRAMA DE LAS NACIONES UNIDAS PARA EL DESARROLLO
B2: "PROGRAMA DE INFRAESTRUCTURA EDILICIA CSJ - PNUD"
B3: SDP/14311/172/2023 - CONSTRUCCION DE LAS OBRAS CIVILES, INSTALACIONES Y MANTENIMIENTO POSTERIOR - JUZGADOS DE 1° INSTANCIA DE FERNANDO DE LA MORA.
B5: RESUMEN DEL PRESUPUESTO
B6: Item | C6: Descripción | E6: Precio Total
B7: Nº | E7: Gs. Iva Incluido
B9: A | C9: OBRAS CIVILES E INSTALACIONES
B10: A.1 | C10: Obras Civiles
B11: A.2 | C11: Sistema de Climatizacion
B12: A.3 | C12: Sistema de Deteccion de Incendios
B13: A.4 | C13: Sistema Integrado de Seguridad Electronica
B14: A.5 | C14: Sistema de Comunicación Oral y Musica Funcional
B15: A.6 | C15: Sistema de Telefonia
B16: A.7 | C16: Red de Datos
B17: A.8 | C17: Ascensores
B18: A.9 | C18: Generador de Emergencia
C19: Total de Obras e Instalaciones
B21: B | C21: MANTENIMIENTO DE LAS OBRAS E INSTALACIONES
B22: B.1 | C22: Obras Civiles
B23: B.2 | C23: Sistema de Climatizacion
B24: B.3 | C24: Sistema de Deteccion de Incendios
B25: B.4 | C25: Sistema Integrado de Seguridad Electronica
B26: B.5 | C26: Sistema de Comunicación Oral y Musica Funcional
B27: B.6 | C27: Sistema de Telefonia
B28: B.7 | C28: Red de Datos
B29: B.8 | C29: Ascensores
B30: B.9 | C30: Generador de Emergencia
C31: Total Mantenimiento de las Obras e Instalaciones
C33: Total General
C34: Son Guaranies . . . . . . .
B37: OBS. | C37: Las Planillas en formato editable deberan ser descargadas del siguiente link.
C38: https://www.undp.org/es/paraguay/adquisiciones

Sheet A.1 Obras Civiles
B1: =+Resumen!B1 -> CORTE SUPREMA DE JUSTICIA - PROGRAMA DE LAS NACIONES UNIDAS PARA EL DESARROLLO
B2: =+Resumen!B2 -> "PROGRAMA DE INFRAESTRUCTURA EDILICIA CSJ - PNUD"
B3: =+Resumen!B3 -> SDP/14311/172/2023 - CONSTRUCCION DE LAS OBRAS CIVILES, INSTALACIONES Y MANTENIMIENTO POSTERIOR - JUZGADOS DE 1° INSTANCIA DE FERNANDO DE LA MORA.
B5: A.1 PLANILLA DE CÓMPUTO MÉTRICO Y PRESUPUESTO - OBRAS CIVILES
B6: Ítem | C6: Cód. | D6: Descripción de Rubros | E6: OG | F6: Un | G6: Cantidad | H6: Precio Unit. | I6: Precio Total
C7: E.T. | H7: Gs. Iva Incluido | I7: Gs. Iva Incluido
B8: 1 | C8: A | D8: TRABAJOS PRELIMINARES OBRAS PROVISORIAS
B9: 1.1 | C9: A.1 | D9: Limpieza de terreno y remoción de árboles que interfieran con la implantación del edificio. Ver plano de relevamiento de árboles. | E9: 522 | F9: m2 | G9: 8200 | I9: =+G9*H9 -> 0
B10: 1.2 | C10: A.2, A.3, A.4, A.5 | D10: Gastos de movilizacion y ejecucion durante el periodo de obra. Ver Items de las Especificaciones Tecnicas A.2, A.3, A.4 y A.5. | E10: 522 | F10: Gl. | G10: 1 | I10: =+G10*H10 -> 0
B11: 1.3 | C11: A.6 | D11: Replanteo y marcación de obra | E11: 522 | F11: m2 | G11: 15210 | I11: 0
B12: 1.4 | C12: I. 3 | D12: Ejecucion del Proyecto ejecutivo en BIM | E12: 522 | F12: gl | G12: 1 | I12: 0
B13: 2 | C13: B | D13: MOVIMIENTO DE SUELO
B14: 2.1 | D14: EXCAVACIÓN
B15: 2.1.1 | C15: A.1, B.1 | D15: Desbroce de terreno | E15: 522 | F15: m2 | G15: 8100 | I15: 0
B16: 2.1.2 | C16: B.1 | D16: Ver planos. Areas Implantación del edificio, cota de excavación Nivel de Piso Terminado(NPT) menos 0,40m, según bloques correspondientes, talud de seguridad mínimo 1:3 en contornos de excavación con sobreancho de trabajo en la base de 0,80m en relación al contorno de implantación del edificio. Estacionamientos y rampas exteriores de circulación vehicular, cota de excavación NPT menos 0,40m. Veredas, Canineros y Jardineria, nivel de terminacion menos 0,20m. | E16: 522 | F16: m3 | G16: 24800 | I16: 0
B17: 2.1.3 | C17: B.2 | D17: Excavación para cabezales y vigas de fundación | E17: 522 | F17: m3 | G17: 221 | I17: 0
B18: 2.1.4 | C18: B.2 | D18: Para Planta de tratamiento, cámaras, registros y cañerías enterradas. | E18: 522 | F18: m3 | G18: =7.5*15*3.5*2 -> 787.5 | I18: 0
B19: 2.1.5 | C19: B.2 | D19: Cámaras, Sumideros y registros | E19: 522 | F19: m3 | G19: =4*4*4*2+24*2 -> 176 | I19: 0
B20: 2.2 | D20: RELLENO Y COMPACTACIÓN
B21: 2.2.1 | C21: B.4 | D21: Area de implantación del edificio, estacionamientos, camineros, escalinatas, rampas y veredas | E21: 522 | F21: m3 | G21: =8200*0.8 -> 6560 | I21: 0
B22: 2.2.2 | C22: B.4 | D22: Adyacente a pantallas enterradas de subsuelos y áreas confinadas; reservorios, sumideros, registros u otros volumenes requeridos. | E22: 522 | F22: m3 | G22: =80*4*4+15*2*3.5+16*4*2+1*40+1200 -> 2753 | I22: 0
B23: 2.2.3 | C23: B.4 | D23: En áreas de canteros de jardinería. | E23: 522 | F23: m3 | G23: =8200*0.2*0.8 -> 1312 | I23: 0
B24: 2.2.4 | C24: B.4 | D24: En área de cesped. | E24: 522 | F24: m3 | G24: 380 | I24: 0
B25: 3 | C25: C | D25: CIMENTACIONES
B26: 3.1 | D26: BLOQUE A
B27: 3.1.1 | C27: C.3 | D27: Pilotes de H°A° de 40 cm. de diámetro, perforados a máquina, suelo estabilizado con lodo bentonítico. Pantallas | E27: 522 | F27: ml | G27: 145.2 | I27: 0
B28: 3.1.2 | C28: C.3 | D28: Pilotes de H°A° de 60 cm. de diámetro, perforados a máquina, suelo estabilizado con lodo bentonítico. | E28: 522 | F28: ml | G28: 30 | I28: 0
B29: 3.1.3 | C29: C.3 | D29: Pilotes de H°A° de 80 cm. de diámetro, perforados a máquina, suelo estabilizado con lodo bentonítico. | E29: 522 | F29: ml | G29: 40 | I29: 0
B30: 3.1.4 | C30: C.3 | D30: Pilotes de H°A° de 100 cm. de diámetro, perforados a máquina, suelo estabilizado con lodo bentonítico. | E30: 522 | F30: ml | G30: 60 | I30: 0
B31: 3.1.5 | C31: C.3 | D31: Pilotes de H°A° de 120 cm. de diámetro, perforados a máquina, suelo estabilizado con lodo bentonítico. | E31: 522 | F31: ml | G31: 100 | I31: 0
B32: 3.1.6 | C32: C.3 | D32: Pilotes de H°A° de 150 cm. de diámetro, perforados a máquina, suelo estabilizado con lodo bentonítico. | E32: 522 | F32: ml | G32: 60 | I32: 0
B33: 3.1.7 | C33: C.5 | D33: Cabezales para los pilotes de HºAº fck 300kg/cm2 | E33: 522 | F33: m3 | G33: 34.9 | I33: 0
B34: 3.1.8 | C34: D.4 | D34: Vigas de amarre sobre pantallas de pilotes Med. 40x60 HºAº fck 300kg/cm2 | E34: 522 | F34: ml | G34: 27.55 | I34: 0
B35: 3.1.9 | C35: D.4 | D35: Vigas de amarre sobre pantallas de pilotes Med. 20x40 HºAº fck 300kg/cm2 | E35: 522 | F35: ml | G35: 28 | I35: 0
B36: 3.1.10 | C36: D.5 | D36: Viga Inferior Med. 50x20, fck 240 Kg/cm2 , incluye excavacion. | E36: 522 | F36: m3 | G36: 2.755 | I36: 0
B37: 3.1.11 | C37: D.0 | D37: Relleno con H° pobre entre pilotes, esp medio 15cm. | E37: 522 | F37: m3 | G37: 11.14478793 | I37: 0
B38: 3.1.12 | C38: D.7 | D38: Pantalla de Ho. Armado Espesor 20cm. | E38: 522 | F38: m3 | G38: 22.04 | I38: 0
B39: 3.1.13 | C39: D.5 | D39: Vigas de Fundacion de 30x50cm. | E39: 522 | F39: ml | G39: 36 | I39: 0
B40: 3.1.14 | C40: D.2 | D40: Pilares de 30x40cm, rigidizadores de pantalla. | E40: 522 | F40: m3 | G40: 3.84 | I40: 0
B41: 3.2 | D41: BLOQUE B
B42: 3.2.1 | C42: C.3 | D42: Pilotes de H°A° de 40 cm. de diámetro, perforados a máquina, suelo estabilizado con lodo bentonítico. Pantallas | E42: 522 | F42: ml | G42: 211.2 | I42: 0
B43: 3.2.2 | C43: C.3 | D43: Pilotes de H°A° de 80 cm. de diámetro, perforados a máquina, suelo estabilizado con lodo bentonítico. | E43: 522 | F43: ml | G43: 32 | I43: 0
B44: 3.2.3 | C44: C.3 | D44: Pilotes de H°A° de 100 cm. de diámetro, perforados a máquina, suelo estabilizado con lodo bentonítico. | E44: 522 | F44: ml | G44: 30 | I44: 0
B45: 3.2.4 | C45: C.3 | D45: Pilotes de H°A° de 120 cm. de diámetro, perforados a máquina, suelo estabilizado con lodo bentonítico. | E45: 522 | F45: ml | G45: 54 | I45: 0
B46: 3.2.5 | C46: C.3 | D46: Pilotes de H°A° de 150 cm. de diámetro, perforados a máquina, suelo estabilizado con lodo bentonítico. | E46: 522 | F46: ml | G46: 30 | I46: 0
B47: 3.2.6 | C47: D.7 | D47: Pantalla de Ho. Armado Espesor 20cm. | E47: 522 | F47: m3 | G47: 33.6 | I47: 0
B48: 3.2.7 | C48: C.5 | D48: Cabezales para los pilotes de HºAº fck 300kg/cm2 | E48: 522 | F48: m3 | G48: 49.5 | I48: 0
B49: 3.2.8 | C49: D.4 | D49: Vigas de amarre sobre pantallas de pilotes Med. 20x40 HºAº fck 300kg/cm2 | E49: 522 | F49: ml | G49: 40 | I49: 0
B50: 3.2.9 | C50: D.4 | D50: Vigas de amarre sobre pantallas de pilotes Med. 40x60 HºAº fck 300kg/cm2 | E50: 522 | F50: ml | G50: 40 | I50: 0
B51: 3.2.10 | C51: D.5 | D51: Viga Inferior Med. 50x20, fck 240 Kg/cm2 , incluye excavacion. | E51: 522 | F51: m3 | G51: 4 | I51: 0
B52: 3.2.11 | C52: D.0 | D52: Relleno con H° pobre entre pilotes, esp medio 15cm. | E52: 522 | F52: m3 | G52: 16 | I52: 0
B53: 3.2.12 | C53: D.2 | D53: Pilares de 30x40cm, rigidizadores de pantalla. | E53: 522 | F53: m3 | G53: 6 | I53: 0
B54: 3.3 | D54: BLOQUE C
B55: 3.3.1 | C55: C.3 | D55: Pilotes de H°A° de 40 cm. de diámetro, perforados a máquina, suelo estabilizado con lodo bentonítico. Pantallas | E55: 522 | F55: ml | G55: 343.2 | I55: 0
B56: 3.3.2 | C56: C.3 | D56: Pilotes de H°A° de 100 cm. de diámetro, perforados a máquina, suelo estabilizado con lodo bentonítico. | E56: 522 | F56: ml | G56: 40 | I56: 0
B57: 3.3.3 | C57: C.3 | D57: Pilotes de H°A° de 120 cm. de diámetro, perforados a máquina, suelo estabilizado con lodo bentonítico. | E57: 522 | F57: ml | G57: 70 | I57: 0
B58: 3.3.4 | C58: C.3 | D58: Pilotes de H°A° de 150 cm. de diámetro, perforados a máquina, suelo estabilizado con lodo bentonítico. | E58: 522 | F58: ml | G58: 60 | I58: 0
B59: 3.3.5 | C59: C.5 | D59: Cabezales para los pilotes de HºAº fck 300kg/cm2 | E59: 522 | F59: m3 | G59: 28 | I59: 0
B60: 3.3.6 | C60: D.4 | D60: Vigas de amarre sobre pantallas de pilotes Med. 40x60 HºAº fck 300kg/cm2 | E60: 522 | F60: ml | G60: 72 | I60: 0
B61: 3.3.7 | C61: D.5 | D61: Viga Inferior Med. 50x20, fck 240 Kg/cm2 , incluye excavacion. | E61: 522 | F61: m3 | G61: 7.2 | I61: 0
B62: 3.3.8 | C62: D.5 | D62: Vigas de Fundacion de 30x50cm. | E62: 522 | F62: ml | G62: 23 | I62: 0
B63: 3.3.9 | C63: D | D63: Relleno con H° pobre entre pilotes, esp medio 15cm. | E63: 522 | F63: m3 | G63: 30 | I63: 0
B64: 3.4 | D64: BLOQUE D
B65: 3.4.1 | C65: C.3 | D65: Pilotes de H°A° de 40 cm. de diámetro, perforados a máquina, suelo estabilizado con lodo bentonítico. Pantallas | E65: 522 | F65: ml | G65: 317 | I65: 0
B66: 3.4.2 | C66: C.3 | D66: Pilotes de H°A° de 60 cm. de diámetro, perforados a máquina, suelo estabilizado con lodo bentonítico. | E66: 522 | F66: ml | G66: 40 | I66: 0
B67: 3.4.3 | C67: C.3 | D67: Pilotes de H°A° de 80 cm. de diámetro, perforados a máquina, suelo estabilizado con lodo bentonítico. | E67: 522 | F67: ml | G67: 32 | I67: 0
B68: 3.4.4 | C68: D.7 | D68: Pantalla de Ho. Armado Espesor 20cm. | E68: 522 | F68: m3 | G68: 55 | I68: 0
B69: 3.4.5 | C69: C.5 | D69: Cabezales para los pilotes de HºAº fck 300kg/cm2 | E69: 522 | F69: m3 | G69: 4.4 | I69: 0
B70: 3.4.6 | C70: D.4 | D70: Vigas de amarre sobre pantallas de pilotes Med. 40x60 HºAº fck 300kg/cm2 | E70: 522 | F70: ml | G70: 62 | I70: 0
B71: 3.4.7 | C71: D.5 | D71: Vigas de amarre sobre pantallas de pilotes Med. 20x40 HºAº fck 300kg/cm2 | E71: 522 | F71: ml | G71: 62 | I71: 0
B72: 3.4.8 | C72: D.5 | D72: Viga Inferior Med. 50x20, fck 240 Kg/cm2 , incluye excavacion. | E72: 522 | F72: m3 | G72: 7 | I72: 0
B73: 3.4.9 | C73: D | D73: Relleno con H° pobre entre pilotes, esp medio 15cm. | E73: 522 | F73: m3 | G73: 25.4 | I73: 0
B74: 3.5 | D74: BLOQUE E
B75: 3.5.1 | C75: C.3 | D75: Pilotes de H°A° de 40 cm. de diámetro, perforados a máquina, suelo estabilizado con lodo bentonítico. Pantallas | E75: 522 | F75: ml | G75: 7 | I75: =+G75*H75 -> 0
B76: 3.5.2 | C76: C.3 | D76: Pilotes de H°A° de 60 cm. de diámetro, perforados a máquina, suelo estabilizado con lodo bentonítico. | E76: 522 | F76: ml | G76: 126 | I76: 0
B77: 3.5.3 | C77: C.3 | D77: Pilotes de H°A° de 100 cm. de diámetro, perforados a máquina, suelo estabilizado con lodo bentonítico. | E77: 522 | F77: ml | G77: 20 | I77: 0
B78: 3.5.4 | C78: C.5 | D78: Cabezales para los pilotes de HºAº fck 300kg/cm2 | E78: 522 | F78: m3 | G78: 9.9 | I78: 0
B79: 3.5.5 | C79: D.4 | D79: Vigas de amarre sobre pantallas de pilotes Med. 40x60 HºAº fck 300kg/cm2 | E79: 522 | F79: ml | G79: 8 | I79: 0
B80: 3.5.6 | C80: D.5 | D80: Viga Inferior Med. 50x20, fck 240 Kg/cm2 , incluye excavacion. | E80: 522 | F80: m3 | G80: 0.8 | I80: 0
B81: 3.5.7 | C81: D | D81: Relleno con H° pobre entre pilotes, esp medio 15cm. | E81: 522 | F81: m3 | G81: 3.5 | I81: 0
B82: 3.5.8 | C82: D.7 | D82: Pantalla de Ho. Armado Espesor 20cm. | E82: 522 | F82: m3 | G82: 5.7 | I82: 0
B83: 3.6 | D83: BLOQUE F - Estacionamiento
B84: 3.6.1 | C84: C.3 | D84: Pilotes de H°A° de 40 cm. de diámetro, perforados a máquina, suelo estabilizado con lodo bentonítico. Pantallas | E84: 522 | F84: ml | G84: 324 | I84: 0
B85: 3.6.2 | C85: C.3 | D85: Pilotes de H°A° de 60 cm. de diámetro, perforados a máquina, suelo estabilizado con lodo bentonítico. | E85: 522 | F85: ml | G85: 50 | I85: 0
B86: 3.6.3 | C86: C.3 | D86: Pilotes de H°A° de 80 cm. de diámetro, perforados a máquina, suelo estabilizado con lodo bentonítico. | E86: 522 | F86: ml | G86: 110 | I86: 0
B87: 3.6.4 | C87: C.3 | D87: Pilotes de H°A° de 120 cm. de diámetro, perforados a máquina, suelo estabilizado con lodo bentonítico. | E87: 522 | F87: ml | G87: 10 | I87: 0
B88: 3.6.5 | C88: C.5 | D88: Cabezales para los pilotes de HºAº fck 300kg/cm2 | E88: 522 | F88: m3 | G88: 10.3 | I88: 0
B89: 3.6.6 | C89: D.4 | D89: Vigas de amarre sobre pantallas de pilotes Med. 40x60 HºAº fck 300kg/cm2 | E89: 522 | F89: ml | G89: 64 | I89: 0
B90: 3.6.7 | C90: D.5 | D90: Viga Inferior Med. 50x20, fck 240 Kg/cm2 , incluye excavacion. | E90: 522 | F90: m3 | G90: 64 | I90: 0
B91: 3.6.8 | C91: D.5 | D91: Viga Inferior Med. 50x20, fck 240 Kg/cm2 , incluye excavacion. | E91: 522 | F91: m3 | G91: 6.4 | I91: 0
B92: 3.6.9 | C92: D | D92: Relleno con H° pobre entre pilotes, esp medio 15cm. | E92: 522 | F92: m3 | G92: 25.88 | I92: 0
B93: 3.6.10 | C93: D.7 | D93: Pantalla de Ho. Armado Espesor 20cm. | E93: 522 | F93: m3 | G93: =86*3.5*0.2 -> 60.2 | I93: 0
B94: 3.7 | D94: BLOQUE G - Estacionamiento funcionarios
B95: 3.7.1 | C95: C.3 | D95: Pilotes de H°A° de 40 cm. de diámetro, perforados a máquina, suelo estabilizado con lodo bentonítico. Pantallas | E95: 522 | F95: ml | G95: 495 | I95: 0
B96: 3.7.2 | C96: C.3 | D96: Pilotes de H°A° de 80 cm. de diámetro, perforados a máquina, suelo estabilizado con lodo bentonítico. | E96: 522 | F96: ml | G96: 42 | I96: 0
B97: 3.7.3 | C97: C.3 | D97: Pilotes de H°A° de 120 cm. de diámetro, perforados a máquina, suelo estabilizado con lodo bentonítico. | E97: 522 | F97: ml | G97: 24 | I97: 0
B98: 3.7.4 | C98: C.5 | D98: Cabezales para los pilotes de HºAº fck 300kg/cm2 | E98: 522 | F98: m3 | G98: 10.3 | I98: 0
B99: 3.7.5 | C99: D.5 | D99: Vigas de amarre sobre pantallas de pilotes Med. 40x60 HºAº fck 300kg/cm2 | E99: 522 | F99: ml | G99: 88 | I99: 0
B100: 3.7.6 | C100: D.5 | D100: Viga Inferior Med. 50x20, fck 240 Kg/cm2 , incluye excavacion. | E100: 522 | F100: m3 | G100: 8.8 | I100: 0
B101: 3.7.7 | C101: D.5 | D101: Viga Inferior Med. 50x20, fck 240 Kg/cm2 , incluye excavacion. | E101: 522 | F101: m3 | G101: 34.7625 | I101: 0
B102: 3.7.8 | C102: D.7 | D102: Pantalla de Ho. Armado Espesor 20cm. | E102: 522 | F102: m3 | G102: 70.4 | I102: 0
B103: 3.7.9 | C103: D.2 | D103: Piso de Hormigon estructural espesor 15 cm. | E103: 522 | F103: m2 | G103: 643 | I103: 0
B104: 3.7.10 | C104: D.0 | D104: Junta perimetral de Isopor de 2cm con sellado posterior con Elastocem o similar | E104: 522 | F104: ml | G104: 89 | I104: 0
B105: 3.7.11 | C105: D.0 | D105: Junta aserrada mas sellado con Elastoce, o similar | E105: 522 | F105: ml | G105: 161 | I105: 0
B106: 3.7.12 | C106: D.0 | D106: Juntas con pasador de varillas lisas y caños de polietileno, según detalles | E106: 522 | F106: ml | G106: 27 | I106: 0
B107: 4 | C107: D | D107: ESTRUCTURA DE HORMIGÓN ARMADO Y POSTENSADO
B108: 4.1 | D108: SUBSUELO 2 - BLOQUE B
B109: 4.1.1 | C109: D.7 | D109: Pantalla de 15cm. para bajo recorrido de cajas de ascensor | E109: 522 | F109: m3 | G109: 4.2 | I109: 0
B110: 4.1.2 | C110: D.3 | D110: Losa bajo recorrido ascensor | E110: 522 | F110: m3 | G110: 3.3 | I110: 0
B111: 4.1.3 | C111: D.2 | D111: Pilares | E111: 522 | F111: m3 | G111: 20.2 | I111: 0
B112: 4.1.4 | C112: D.3 - D.4 | D112: Losa Macizas Piso SS2 | E112: 522 | F112: m3 | G112: 76.1 | I112: 0
B113: 4.1.5 | C113: D.1 | D113: Vigas de arriostramiento de SS2 | E113: 522 | F113: m3 | G113: 20 | I113: 0
B114: 4.1.6 | C114: D.11 | D114: Tanque Inferior de Ho.Ao. Según detalle. | E114: 522 | F114: m3 | G114: 45.6 | I114: 0
B115: 4.1.7 | C115: D.11 | D115: Sumidero de Ho.Ao. Según detalle | E115: 522 | F115: m3 | G115: 5 | I115: 0
B116: 4.2 | D116: SUBSUELO 1 - BLOQUES A, B, C, D, E, F, G
B117: 4.2.1 | C117: D.2 | D117: Pilares de H°A° | E117: 522 | F117: m3 | G117: 149.7 | I117: 0
B118: 4.2.2 | C118: D.3 - D.4 | D118: Losas Macizas techo de SS1 | E118: 522 | F118: m3 | G118: 344.6 | I118: 0
B119: 4.2.3 | C119: D.3 - D.4 | D119: Losas casetonadas espesor 40 cm, techo de SS1 | E119: 522 | F119: m3 | G119: 528 | I119: 0
B120: 4.2.4 | C120: D.4 | D120: Vigas,Techo SS1 | E120: 522 | F120: m3 | G120: 257.6 | I120: 0
B121: 4.2.5 | C121: D.7 | D121: Pantalla de 20cm. para bajo recorrido de cajas de ascensor | E121: 522 | F121: m3 | G121: 2.2 | I121: 0
B122: 4.2.6 | C122: D.3 | D122: Losa bajo recorrido ascensor | E122: 522 | F122: m3 | G122: 0.9 | I122: 0
B123: 4.2.7 | C123: D.11 | D123: Sumidero de Ho.Ao. Según detalle | E123: 522 | F123: m3 | G123: 5 | I123: 0
B124: 4.3 | D124: PLANTA BAJA - BLOQUES A, B, C, D
B125: 4.3.1 | C125: D.2 | D125: Pilares de H°A° | E125: 522 | F125: m3 | G125: 81.3 | I125: 0
B126: 4.3.2 | C126: D.3 - D.4 | D126: Losas Macizas techo de PB | E126: 522 | F126: m3 | G126: 151.1 | I126: 0
B127: 4.3.3 | C127: D.12 | D127: Losas macizas postensadas techo PB | E127: 522 | F127: m3 | G127: 210.4 | I127: 0
B128: 4.3.4 | C128: D.12 | D128: Acero de postensado envainado diametro 1/2 " | E128: 522 | F128: ml | G128: 4542 | I128: 0
B129: 4.3.5 | C129: D.4 | D129: Vigas de Techo PB | E129: 522 | F129: m3 | G129: 91.7 | I129: 0
B130: 4.3.6 | C130: D.7 | D130: Pantalla de 20cm. para bajo recorrido de cajas de ascensor | E130: 522 | F130: m3 | G130: 2.2 | I130: 0
B131: 4.3.7 | C131: D.3 | D131: Losa bajo recorrido ascensor | E131: 522 | F131: m3 | G131: 0.9 | I131: 0
B132: 4.4 | D132: PRIMER PISO - BLOQUES A, B, C, D
B133: 4.4.1 | C133: D.2 | D133: Pilares | E133: 522 | F133: m3 | G133: 76.5 | I133: 0
B134: 4.4.2 | C134: D.12 | D134: Losas macizas postensadas Techo 1°P | E134: 522 | F134: m3 | G134: 236 | I134: 0
B135: 4.4.3 | C135: D.3 - D.4 | D135: Losas Macizas techo 1ºpiso | E135: 522 | F135: m3 | G135: 96.94564 | I135: 0
B136: 4.4.4 | C136: D.12 | D136: Acero de postensado envainado diametro 1/2 " | E136: 522 | F136: ml | G136: 4925 | I136: 0
B137: 4.4.5 | C137: D.4 | D137: Vigas de Techo 1°P | E137: 522 | F137: m3 | G137: 93.4 | I137: 0
B138: 4.5 | D138: SEGUNDO PISO - BLOQUES A, B, C
B139: 4.5.1 | C139: D.2 | D139: Pilares | E139: 522 | F139: m3 | G139: 61.7 | I139: =+G139*H139 -> 0
B140: 4.5.2 | C140: D.12 | D140: Losas macizas postensadasTecho 2°P | E140: 522 | F140: m3 | G140: 209.1 | I140: 0
B141: 4.5.3 | C141: D.3 - D.4 | D141: Losas macizas de Techo 2°P | E141: 522 | F141: m3 | G141: 85.9 | I141: 0
B142: 4.5.4 | C142: D.12 | D142: Acero de postensado envainado diametro 1/2 " | E142: 522 | F142: ml | G142: 4542 | I142: 0
B143: 4.5.5 | C143: D.4 | D143: Vigas de Techo 2°P | E143: 522 | F143: m3 | G143: 66.8 | I143: 0
B144: 4.6 | D144: TERCER - BLOQUES A, B, C
B145: 4.6.1 | C145: D.2 | D145: Pilares | E145: 522 | F145: m3 | G145: 61.7 | I145: 0
B146: 4.6.2 | C146: D.12 | D146: Losas macizas postensadas Techo 3°P | E146: 522 | F146: m3 | G146: 209.1 | I146: 0
B147: 4.6.3 | C147: D.3 - D.4 | D147: Losas macizas de Techo 3°P | E147: 522 | F147: m3 | G147: 85.9 | I147: 0
B148: 4.6.4 | C148: D.12 | D148: Acero de postensado envainado diametro 1/2 " | E148: 522 | F148: ml | G148: 4542 | I148: 0
B149: 4.6.5 | C149: D.4 | D149: Vigas de Techo 3°P | E149: 522 | F149: m3 | G149: 66.8 | I149: 0
B150: 4.7 | D150: CUARTO - BLOQUES A, B, C
B151: 4.7.1 | C151: D.2 | D151: Pilares | E151: 522 | F151: m3 | G151: 61.7 | I151: 0
B152: 4.7.2 | C152: D.12 | D152: Losas macizas postensadas Techo 4°P | E152: 522 | F152: m3 | G152: 209.1 | I152: 0
B153: 4.7.3 | C153: D.3 - D.4 | D153: Losas macizas de Techo 4°P | E153: 522 | F153: m3 | G153: 85.9 | I153: 0
B154: 4.7.4 | C154: D.12 | D154: Acero de postensado envainado diametro 1/2 " | E154: 522 | F154: ml | G154: 4542 | I154: 0
B155: 4.7.5 | C155: D.4 | D155: Vigas de Techo 4°P | E155: 522 | F155: m3 | G155: 66.8 | I155: 0
B156: 4.8 | D156: QUINTO - BLOQUES A, B, C
B157: 4.8.1 | C157: D.2 | D157: Pilares | E157: 522 | F157: m3 | G157: =+G145 -> 61.7 | I157: 0
B158: 4.8.2 | C158: D.12 | D158: Losas macizas postensadas de Techo 5°P | E158: 522 | F158: m3 | G158: 237.4 | I158: 0
B159: 4.8.3 | C159: D.3 - D.4 | D159: Losas macizas de Techo 5°P | E159: 522 | F159: m3 | G159: 85.9 | I159: 0
B160: 4.8.4 | C160: D.12 | D160: Acero de postensado envainado diametro 1/2 " | E160: 522 | F160: ml | G160: 6141 | I160: 0
B161: 4.8.5 | C161: D.4 | D161: Vigas de Techo 5°P | E161: 522 | F161: m3 | G161: 66.1 | I161: 0
B162: 4.9 | D162: SEXTO - BLOQUES A, B, C - Azotea
B163: 4.9.1 | C163: D.2 | D163: Pilares | E163: 522 | F163: m3 | G163: 58.1 | I163: 0
B164: 4.9.2 | C164: D.12 | D164: Losas macizas postensadas de Techo 6°P | E164: 522 | F164: m3 | G164: 103.6 | I164: 0
B165: 4.9.3 | C165: D.3 - D.4 | D165: Losas macizas de Techo 6°P | E165: 522 | F165: m3 | G165: 93.7 | I165: 0
B166: 4.9.4 | C166: D.12 | D166: Acero de postensado envainado diametro 1/2 " | E166: 522 | F166: ml | G166: 2793 | I166: 0
B167: 4.9.5 | C167: D.4 | D167: Vigas de Techo 6°P | E167: 522 | F167: m3 | G167: 47.83 | I167: 0
B168: 4.10 | D168: SEPTIMO - BLOQUES B, C - Azotea
B169: 4.10.1 | C169: D.2 | D169: Pilares | E169: 522 | F169: m3 | G169: 36 | I169: 0
B170: 4.10.2 | C170: D.3 - D.4 | D170: Losas macizas de Techo 6°P | E170: 522 | F170: m3 | G170: 79 | I170: 0
B171: 4.10.3 | C171: D.4 | D171: Vigas de Techo 6°P | E171: 522 | F171: m3 | G171: 29.8 | I171: 0
B172: 4.10.4 | C172: D.11 | D172: Tanque Superior de Ho.Ao. Según detalles | E172: 522 | F172: m3 | G172: 49.3 | I172: 0
B173: 4.11 | D173: ESCALERAS BLOQUES - A, B, C, D
B174: 4.11.1 | C174: D.6 | D174: Escaleras de Hormigon Armado Bloque A | E174: 522 | F174: m3 | G174: 25.2 | I174: 0
B175: 4.11.2 | C175: D.6 | D175: Escaleras de Hormigon Armado Bloque B | E175: 522 | F175: m3 | G175: 62.6 | I175: 0
B176: 4.11.3 | C176: D.6 | D176: Escaleras de Hormigon Armado Bloque C | E176: 522 | F176: m3 | G176: 29.2 | I176: 0
B177: 4.11.4 | C177: D.6 | D177: Escaleras de Hormigon Armado Bloque D | E177: 522 | F177: m3 | G177: 4.95 | I177: 0
B178: 4.12 | D178: EXTERIORES
B179: 4.12.1 | C179: D.3 - D.4 | D179: Rampas Vehiculares sobre suelo e=15 cm | E179: 522 | F179: m2 | G179: 440 | I179: 0
B180: 4.12.2 | C180: D.3 - D.4 | D180: Rampas Peatonales sobre suelo e=15cm | E180: 522 | F180: m2 | G180: 99 | I180: 0
B181: 4.12.3 | C181: C | D181: Bloques de Hº ciclopedo murallas exteriores | E181: 522 | F181: m3 | G181: 6.72 | I181: 0
B182: 4.12.4 | C182: D.4 | D182: Viga de amarre 20 x 50 bajo muralla | E182: 522 | F182: m3 | G182: 2.479 | I182: 0
B183: 4.12.5 | C183: D.7 | D183: Muros Perimetrales Exteriores | E183: 522 | F183: m3 | G183: 131.1 | I183: 0
B184: 4.12.6 | C184: D.7 | D184: Canteros Bloque E | E184: 522 | F184: m3 | G184: 76.3 | I184: 0
B185: 4.12.7 | C185: D.7 | D185: Canteros Bloque F | E185: 522 | F185: m3 | G185: 10 | I185: 0
B186: 4.12.8 | C186: D.6 | D186: Escalera sobre terreno | E186: 522 | F186: m2 | G186: 64.381 | I186: 0
B187: 4.13 | D187: SEGURIDAD EN OBRA
B188: 4.13.1 | C188: D.0 | D188: Bandeja de proteccion de 2m. de ancho en dos niveles en cada bloque en altura. Primera Bandeja(fija), en techo de Planta Baja. Segunda bandeja(móvil), a partir del techo de Primer Piso. | E188: 522 | F188: ml | G188: 680 | I188: 0
B189: 4.13.2 | C189: D.0 | D189: Cortina de Protección Lateral entre Bandeja superior e inferior. | E189: 522 | F189: gl | G189: 1 | I189: 0
B190: 4.13.3 | C190: D.0 | D190: Barandas metalicas de varillas de proteccion en escaleras y ascensores | E190: 522 | F190: ml | G190: =((66+65+72+48+10+10+18)*2)+(52+144+26) -> 800 | I190: 0
B191: 5 | D191: MAMPOSTERÍA
B192: 5.1 | D192: SUBSUELO 2
B193: 5.1.1 | C193: E.1 | D193: Mampostería de elevación con ladrillos comunes de 0,15m | E193: 522 | F193: m2 | G193: =+(2.25+5.3+1.7+2.5*2+6+3.15+11.8+3.7+6.15*4+2.5*2+10.5+2.3*2+1.8+4+1.6)*4 -> 364 | I193: 0
B194: 5.1.2 | C194: E.1 | D194: Mampostería de elevación con ladrillos comunes de 0,20m | E194: 522 | F194: m2 | G194: 12 | I194: 0
B195: 5.1.3 | C195: E.1 | D195: Mampostería de elevación con ladrillos comunes de 0,30m | E195: 522 | F195: m2 | G195: 8 | I195: 0
B196: 5.1.4 | C196: E.5 | D196: Dinteles de H°A° | E196: 522 | F196: ml | G196: =14*1.2 -> 16.8 | I196: 0
B197: 5.2 | D197: SUBSUELO 1
B198: 5.2.1 | C198: E.2 | D198: Doble mampostería de ladrillos comunes de 0,15m dispuestas en planos verticales paralelos, separadas entre sí por un espacio aproximado de 0.05 m. arristradas una con otra mediante varillas de 4,2 mm. según se consigna en las especificaciones técnicas. | E198: 522 | F198: m2 | G198: 150 | I198: 0
B199: 5.2.2 | C199: E.1 | D199: Mampostería de elevación con ladrillos comunes de 0,15m | E199: 522 | F199: m2 | G199: 1098.2 | I199: 0
B200: 5.2.3 | C200: E.1 | D200: Mampostería de elevación con ladrillos comunes de 0,20m | E200: 522 | F200: m2 | G200: 6 | I200: 0
B201: 5.2.4 | C201: E.1 | D201: Mampostería de elevación con ladrillos comunes de 0,30m | E201: 522 | F201: m2 | G201: 451 | I201: 0
... 2898 more rows

Sheet A.2 Climatizacion
B1: CORTE SUPREMA DE JUSTICIA - PROGRAMA DE LAS NACIONES UNIDAS PARA EL DESARROLLO
B2: "PROGRAMA DE INFRAESTRUCTURA EDILICIA CSJ - PNUD"
B3: SDP/14311/172/2023 - CONSTRUCCION DE LAS OBRAS CIVILES, INSTALACIONES Y MANTENIMIENTO POSTERIOR - JUZGADOS DE 1° INSTANCIA DE FERNANDO DE LA MORA.
B5: A.2 PLANILLA DE CÓMPUTO MÉTRICO Y PRESUPUESTO - SISTEMA DE CLIMATIZACION
B6: Ítem | C6: Cód. | D6: Descripción de Rubros | E6: OG | F6: Un | G6: Cantidad | H6: Precio Unit. | I6: Precio Total
C7: E.T. | H7: Gs. Iva Incluido | I7: Gs. Iva Incluido
B8: 1. EQUIPOS
B9: A - AIRE ACONDICIONADO
B10: A.2.1.A1 | C10: IE1 | D10: Unidad Enfriadora de Agua de 100 TR, compresores tipo SCROLL, Alta eficiencia EER 3 o superior, bajo nivel de sonoro y kit hidronico incluido de fabrica. | E10: 522 | F10: un | G10: 3 | I10: =+G10*H10 -> 0
B11: A.2.1.A2 | C11: IE1 | D11: Fan Coil tipo horizontal para conductos, de 3,50 Kw | E11: 522 | F11: un | G11: 24 | I11: =+G11*H11 -> 0
B12: A.2.1.A3 | C12: IE1 | D12: Fan Coil tipo horizontal para conductos, de 5,20 kW | E12: 522 | F12: un | G12: 77 | I12: 0
B13: A.2.1.A4 | C13: IE1 | D13: Fan Coil tipo horizontal para conductos, de 7,15 kW | E13: 522 | F13: un | G13: 15 | I13: 0
B14: A.2.1.A5 | C14: IE1 | D14: Fan Coil tipo horizontal para conductos, de 10,5 kW | E14: 522 | F14: un | G14: 45 | I14: 0
B15: A.2.1.A6 | C15: IE1 | D15: Fan Coil tipo horizontal para conductos, de 13,5 kW | E15: 522 | F15: un | G15: 34 | I15: 0
B16: A.2.1.A7 | C16: IE1 | D16: Fan Coil tipo horizontal para conductos, de 17,5 kW | E16: 522 | F16: un | G16: 13 | I16: 0
B17: A.2.1.A8 | C17: IE1 | D17: Unidad de Recuperador de Calor, con inyeccion y extraccion de aire filtrado de 800 m3/h (prever 2 juegos de recambio de filtros F7 y M5 por unidad) | E17: 522 | F17: un | G17: 2 | I17: 0
B18: A.2.1.A9 | C18: IE1 | D18: Unidad de Recuperador de Calor, con inyeccion y extraccion de aire filtrado de 1.200 m3/h (prever 2 juegos de recambio de filtros F7 y M5 por unidad) | E18: 522 | F18: un | G18: 38 | I18: 0
B19: A.2.1.A10 | C19: IE1 | D19: Unidad de Recuperador de Calor, con inyeccion y extraccion de aire filtrado de 1.600 m3/h (prever 2 juegos de recambio de filtros F7 y M5 por unidad) | E19: 522 | F19: un | G19: 7 | I19: 0
B20: A.2.1.A11 | C20: IE1 | D20: Unidad de Recuperador de Calor, con inyeccion y extraccion de aire filtrado de 2.100 m3/h (prever 2 juegos de recambio de filtros F7 y M5 por unidad) | E20: 522 | F20: un | G20: 1 | I20: 0
B21: A.2.1.A12 | C21: IE1 | D21: Bomba de agua de 200 m3/h @ 30 mca. Secundaria. Con variadador de frecuencia incorporado. Vertical en linea acople separado. Específica para HVAC. | E21: 522 | F21: un | G21: 2 | I21: 0
B22: A.2.1.A13 | C22: IE1 | D22: Tanque hidroneumatico de 500lts expansion del sistema agua fria. | E22: 522 | F22: un | G22: 1 | I22: 0
B23: A.2.1.A14 | C23: IE1 | D23: Válvula Mariposa principal de apertura y cierre, de 8" | E23: 522 | F23: un | G23: 2 | I23: 0
B24: A.2.1.A15 | C24: IE1 | D24: Válvula Combinada, regulación, cierre y retención de 6" | E24: 522 | F24: un | G24: 2 | I24: 0
B25: A.2.1.A16 | C25: IE1 | D25: Guía de Succión con Filtro de 6" | E25: 522 | F25: un | G25: 2 | I25: 0
B26: A.2.1.A17 | C26: IE1 | D26: Válvulas motorizadas de tres vías para los fan coils, hasta 3,0 m3/h | E26: 522 | F26: un | G26: 13 | I26: 0
B27: A.2.1.A18 | C27: IE1 | D27: Válvulas motorizadas de dos vías, on/off o modulante para caudal hasta 0,9 m3/h. | E27: 522 | F27: un | G27: 101 | I27: 0
B28: A.2.1.A19 | C28: IE1 | D28: Válvulas motorizadas de dos vías, on/off o modulante para caudal hasta 1,8 m3/h. | E28: 522 | F28: un | G28: 60 | I28: 0
B29: A.2.1.A20 | C29: IE1 | D29: Válvulas motorizadas de dos vías, on/off o modulante para caudal hasta 3,0 m3/h. | E29: 522 | F29: un | G29: 34 | I29: 0
B30: A.2.1.A21 | C30: IE1 | D30: Controlador de temperatura ambiente con selector de encendido y apagado, control de velocidad del ventilador y de temperatura y comunicación a protocolo abierto para integración a BMS y contacto magnetico para abertura de ventanas. más reserva (22un.) | E30: 522 | F30: un | G30: 230 | I30: 0
B31: A.2.1.A22 | C31: IE1 | D31: Unidad split con evaporador de pared, de 9,000 btu/h | E31: 541 | F31: un | G31: 1 | I31: 0
B32: A.2.1.A23 | C32: IE1 | D32: Unidad split con evaporador baja silueta, de 36,000 btu/h | E32: 541 | F32: un | G32: 2 | I32: 0
B33: B - VENTILACIÓN FORZADA
B34: A.2.1.B1 | C34: IE1 | D34: Extractor tipo JETFAN de 3.600 m3/h subsuelo 1 | E34: 522 | F34: un | G34: 6 | I34: 0
B35: A.2.1.B2 | C35: IE1 | D35: Detectores de monoxido de carbono (CO) para accionamiento JETFAN | E35: 522 | F35: un | G35: 6 | I35: 0
B36: A.2.1.B3 | C36: IE1 | D36: Extractor para cocina con colector de grasa de 6.500 m3/h Comedor bloque D | E36: 522 | F36: un | G36: 1 | I36: 0
B37: A.2.1.B4 | C37: IE1 | D37: Inyector de aire para presurizacion de escaleras de 7.000 m3/h y 200Pa | E37: 522 | F37: un | G37: 2 | I37: 0
B38: A.2.1.B5 | C38: IE1 | D38: Extractor helicoidal tubular de 2000 m3/h | E38: 522 | F38: un | G38: 3 | I38: 0
B39: 2. MATERIALES, MONTAJE Y PUESTA EN MARCHA
B40: A - PLANTA SUBSUELO 2
D41: Aire Acondicionado
B42: A.2.2.A1 | C42: IE1 | D42: Cañería de polipropileno soldable por termofusión, con aislación. Diametro 40mm | E42: 522 | F42: ml | G42: 44 | I42: 0
B43: A.2.2.A2 | C43: IE1 | D43: Cañería de polipropileno soldable por termofusión, con aislación. Diametro 32mm | E43: 522 | F43: ml | G43: 10 | I43: 0
B44: A.2.2.A3 | C44: IE1 | D44: Cañería de polipropileno soldable por termofusión, con aislación. Diametro 25mm | E44: 522 | F44: ml | G44: 32 | I44: 0
B45: A.2.2.A4 | C45: IE1 | D45: Colocación de equipos adosados a la losa. Fancoil, Unidad Split y Recuperadores de Calor | E45: 522 | F45: un | G45: 6 | I45: 0
B46: A.2.2.A5 | C46: IE1 | D46: Cañerías de drenaje en PVC soldable | E46: 522 | F46: gl | G46: 1 | I46: 0
B47: A.2.2.A6 | C47: IE1 | D47: Conexión de Fancoils, incluyendo llaves de cierre de igual diámetro con las cañerías | E47: 522 | F47: un | G47: 4 | I47: 0
B48: A.2.2.A7 | C48: IE1 | D48: Materiales menores | E48: 522 | F48: gl | G48: 1 | I48: 0
B49: A.2.2.A8 | C49: IE1 | D49: Ductos de paneles tipo ALUPIR, para distribucion de aire. | E49: 522 | F49: m | G49: 30 | I49: 0
B50: A.2.2.A9 | C50: IE1 | D50: Ducto flexible 30 cm | E50: 522 | F50: m | G50: 20 | I50: 0
B51: A.2.2.A10 | C51: IE1 | D51: Ducto flexible 25 cm | E51: 522 | F51: m | G51: 10 | I51: 0
B52: A.2.2.A11 | C52: IE1 | D52: Ducto flexible 20 cm | E52: 522 | F52: m | G52: 10 | I52: 0
B53: A.2.2.A12 | C53: IE1 | D53: Ducto flexible 15 cm | E53: 522 | F53: m | G53: 20 | I53: 0
B54: A.2.2.A13 | C54: IE1 | D54: Difusor Circular 30 cm de diametro | E54: 522 | F54: un | G54: 3 | I54: 0
B55: A.2.2.A14 | C55: IE1 | D55: Reja de retorno tipo AR basculante 60,5x60,5 | E55: 522 | F55: un | G55: 6 | I55: 0
B56: A.2.2.A15 | C56: IE1 | D56: Difusor tipo panel de 60,5x60,5 para insuflamiento de aire (p/cielo raso de placas) | E56: 522 | F56: un | G56: 8 | I56: 0
D57: Ventilación Forzada | I57: 0
B58: A.2.2.A16 | C58: IE1 | D58: Difusor circular 30 cm | E58: 522 | F58: un | G58: 3 | I58: 0
B59: A.2.2.A17 | C59: IE1 | D59: Ductos de chapa galvanizada. Medida según plano. | E59: 522 | F59: m | G59: 70 | I59: 0
B60: A.2.2.A18 | C60: IE1 | D60: Ducto flexible 30 cm | E60: 522 | F60: m | G60: 15 | I60: 0
B61: A.2.2.A19 | C61: IE1 | D61: Ducto flexible 20 cm | E61: 522 | F61: m | G61: 25 | I61: 0
B62: A.2.2.A20 | C62: IE1 | D62: Ducto flexible 15 cm | E62: 522 | F62: m | G62: 15 | I62: 0
B63: A.2.2.A21 | C63: IE1 | D63: Materiales menores | E63: 522 | F63: gl | G63: 1 | I63: 0
B64: B - PLANTA SUBSUELO 1
D65: Aire Acondicionado
B66: A.2.2.B1 | C66: IE1 | D66: Cañería de polipropileno soldable por termofusión, con aislación. Diametro 90mm | E66: 522 | F66: ml | G66: 4 | I66: 0
B67: A.2.2.B2 | C67: IE1 | D67: Cañería de polipropileno soldable por termofusión, con aislación. Diametro 63mm | E67: 522 | F67: ml | G67: 14 | I67: 0
B68: A.2.2.B3 | C68: IE1 | D68: Cañería de polipropileno soldable por termofusión, con aislación. Diametro 50m | E68: 522 | F68: ml | G68: 30 | I68: 0
B69: A.2.2.B4 | C69: IE1 | D69: Cañería de polipropileno soldable por termofusión, con aislación. Diametro 40mm | E69: 522 | F69: ml | G69: 56 | I69: 0
B70: A.2.2.B5 | C70: IE1 | D70: Cañería de polipropileno soldable por termofusión, con aislación. Diametro 32mm | E70: 522 | F70: ml | G70: 76 | I70: 0
B71: A.2.2.B6 | C71: IE1 | D71: Cañería de polipropileno soldable por termofusión, con aislación. Diametro 25mm | E71: 522 | F71: ml | G71: 128 | I71: 0
B72: A.2.2.B7 | C72: IE1 | D72: Colocación de equipos adosados a la losa. Fancoil, Unidad Split y Recuperadores de Calor | E72: 522 | F72: un | G72: 28 | I72: 0
B73: A.2.2.B8 | C73: IE1 | D73: Cañerías de drenaje en PVC soldable | E73: 522 | F73: gl | G73: 1 | I73: 0
B74: A.2.2.B9 | C74: IE1 | D74: Conexión de Fancoils, incluyendo llaves de cierre de igual diámetro con las cañerías | E74: 522 | F74: un | G74: 16 | I74: 0
B75: A.2.2.B10 | C75: IE1 | D75: Materiales menores | E75: 522 | F75: gl | G75: 1 | I75: =+G75*H75 -> 0
B76: A.2.2.B11 | C76: IE1 | D76: Ductos de paneles tipo ALUPIR, para distribucion de aire. | E76: 522 | F76: m | G76: 75 | I76: 0
B77: A.2.2.B12 | C77: IE1 | D77: Ducto flexible 30 cm | E77: 522 | F77: m | G77: 20 | I77: 0
B78: A.2.2.B13 | C78: IE1 | D78: Ducto flexible 25 cm | E78: 522 | F78: m | G78: 85 | I78: 0
B79: A.2.2.B14 | C79: IE1 | D79: Ducto flexible 15 cm | E79: 522 | F79: m | G79: 45 | I79: 0
B80: A.2.2.B15 | C80: IE1 | D80: Difusor Circular 30 cm de diametro | E80: 522 | F80: un | G80: 12 | I80: 0
B81: A.2.2.B16 | C81: IE1 | D81: Reja de retorno tipo AR basculante 60,5x60,5 | E81: 522 | F81: un | G81: 20 | I81: 0
B82: A.2.2.B17 | C82: IE1 | D82: Difusor tipo panel de 60,5x60,5 para insuflamiento de aire (p/cielo raso de placas) | E82: 522 | F82: un | G82: 22 | I82: 0
B83: A.2.2.B18 | C83: IE1 | D83: Difusor para insuflamiento de aire DLQ 45x45 (p/cielo raso a junta tomada) | E83: 522 | F83: un | G83: 4 | I83: 0
B84: A.2.2.B19 | C84: IE1 | D84: Reja tipo VAT 225mmx125 mm | E84: 522 | F84: un | G84: 3 | I84: 0
D85: Ventilación Forzada
B86: A.2.2.B18 | C86: IE1 | D86: Difusor circular 30 cm | E86: 522 | F86: un | G86: 14 | I86: 0
B87: A.2.2.B19 | C87: IE1 | D87: Reja VAT 525mm x 325 mm | E87: 522 | F87: un | G87: 2 | I87: 0
B88: A.2.2.B20 | C88: IE1 | D88: Reja VAT 425mm x 225 mm | E88: 522 | F88: un | G88: 6 | I88: 0
B89: A.2.2.B21 | C89: IE1 | D89: Reja VAT 225 mm x 125 mm | E89: 522 | G89: 6 | I89: 0
B90: A.2.2.B22 | C90: IE1 | D90: Reja VAT 325 mm x 125 mm | E90: 522 | F90: un | G90: 2 | I90: 0
B91: A.2.2.B23 | C91: IE1 | D91: Ductos de chapa galvanizada. Medida según plano. | E91: 522 | F91: m | G91: 180 | I91: 0
B92: A.2.2.B24 | C92: IE1 | D92: Ducto flexible 30 cm | E92: 522 | F92: m | G92: 20 | I92: 0
B93: A.2.2.B25 | C93: IE1 | D93: Ducto flexible 20 cm | E93: 522 | F93: m | G93: 40 | I93: 0
B94: A.2.2.B26 | C94: IE1 | D94: Ducto flexible 15 cm | E94: 522 | F94: m | G94: 65 | I94: 0
B95: A.2.2.B27 | C95: IE1 | D95: Conexión y puesta en marcha de extractores tipo JETFAN | E95: 522 | F95: un | G95: 6 | I95: 0
B96: A.2.2.B28 | C96: IE1 | D96: Materiales menores | F96: gl | G96: 1 | I96: 0
B97: C - PLANTA BAJA | I97: 0
D98: Aire Acondicionado | I98: 0
B99: A.2.2.C1 | C99: IE1 | D99: Cañería de polipropileno soldable por termofusión, con aislación. Diametro 110mm | E99: 522 | F99: ml | G99: 16 | I99: 0
B100: A.2.2.C2 | C100: IE1 | D100: Cañería de polipropileno soldable por termofusión, con aislación. Diametro 75mm | E100: 522 | F100: ml | G100: 18 | I100: 0
B101: A.2.2.C3 | C101: IE1 | D101: Cañería de polipropileno soldable por termofusión, con aislación. Diametro 63mm | E101: 522 | F101: ml | G101: 98 | I101: 0
B102: A.2.2.C4 | C102: IE1 | D102: Cañería de polipropileno soldable por termofusión, con aislación. Diametro 50m | E102: 522 | F102: ml | G102: 56 | I102: 0
B103: A.2.2.C5 | C103: IE1 | D103: Cañería de polipropileno soldable por termofusión, con aislación. Diametro 40mm | E103: 522 | F103: ml | G103: 40 | I103: 0
B104: A.2.2.C6 | C104: IE1 | D104: Cañería de polipropileno soldable por termofusión, con aislación. Diametro 32mm | E104: 522 | F104: ml | G104: 115 | I104: 0
B105: A.2.2.C7 | C105: IE1 | D105: Cañería de polipropileno soldable por termofusión, con aislación. Diametro 25mm | E105: 522 | F105: ml | G105: 232 | I105: 0
B106: A.2.2.C8 | C106: IE1 | D106: Colocación de equipos adosados a la losa. Fancoil, Unidad Split y Recuperadores de Calor | E106: 522 | F106: un | G106: 45 | I106: 0
B107: A.2.2.C9 | C107: IE1 | D107: Cañerías de drenaje en PVC soldable | E107: 522 | F107: gl | G107: 1 | I107: 0
B108: A.2.2.C10 | C108: IE1 | D108: Conexión de Fancoils, incluyendo llaves de cierre de igual diámetro con las cañerías | E108: 522 | F108: un | G108: 33 | I108: 0
B109: A.2.2.C11 | C109: IE1 | D109: Materiales menores | E109: 522 | F109: gl | G109: 1 | I109: 0
B110: A.2.2.C12 | C110: IE1 | D110: Ductos de paneles tipo ALUPIR, para distribucion de aire. | E110: 522 | F110: m | G110: 240 | I110: 0
B111: A.2.2.C13 | C111: IE1 | D111: Ducto flexible 35 cm | E111: 522 | F111: m | G111: 20 | I111: 0
B112: A.2.2.C14 | C112: IE1 | D112: Ducto flexible 30 cm | E112: 522 | F112: m | G112: 40 | I112: 0
B113: A.2.2.C15 | C113: IE1 | D113: Ducto flexible 25 cm | E113: 522 | F113: m | G113: 140 | I113: 0
B114: A.2.2.C16 | C114: IE1 | D114: Ducto flexible 20 cm | E114: 522 | F114: m | G114: 40 | I114: 0
B115: A.2.2.C17 | C115: IE1 | D115: Ducto flexible 15 cm | E115: 522 | F115: m | G115: 30 | I115: 0
B116: A.2.2.C18 | C116: IE1 | D116: Difusor Circular 30 cm de diametro | E116: 522 | F116: un | G116: 6 | I116: 0
B117: A.2.2.C19 | C117: IE1 | D117: Reja de retorno tipo AR basculante 60,5x60,5 | E117: 522 | F117: un | G117: 60 | I117: 0
B118: A.2.2.C20 | C118: IE1 | D118: Difusor para insuflamiento de aire DLQ 45x45 (p/cielo raso a junta tomada) | E118: 522 | F118: un | G118: 30 | I118: 0
B119: A.2.2.C21 | C119: IE1 | D119: Difusor tipo panel de 60,5x60,5 para insuflamiento de aire (p/cielo raso de placas) | E119: 522 | F119: un | G119: 46 | I119: 0
B120: A.2.2.C22 | C120: IE1 | D120: Reja tipo VAT 225mmx125 mm | E120: 522 | F120: un | G120: 3 | I120: 0
B121: A.2.2.C23 | C121: IE1 | D121: Reja tipo VAT 325mmx125 mm | E121: 522 | F121: un | G121: 5 | I121: 0
B122: A.2.2.C24 | C122: IE1 | D122: Reja tipo VAT 425mmx225 mm | E122: 522 | F122: un | G122: 6 | I122: 0
D123: Ventilación Forzada | I123: 0
B124: A.2.2.C25 | C124: IE1 | D124: Difusor circular 30 cm | E124: 522 | F124: un | G124: 16 | I124: 0
B125: A.2.2.C26 | C125: IE1 | D125: Reja de retorno tipo AR basculante 60,5x60,5 | E125: 522 | F125: un | G125: 6 | I125: 0
B126: A.2.2.C27 | C126: IE1 | D126: Reja VAT 425 mmx225 mm | E126: 522 | F126: un | G126: 12 | I126: 0
B127: A.2.2.C28 | C127: IE1 | D127: Ductos de chapa galvanizada. Medida según plano. | E127: 522 | F127: m | G127: 300 | I127: 0
B128: A.2.2.C29 | C128: IE1 | D128: Ducto flexible 25 cm | E128: 522 | F128: m | G128: 60 | I128: 0
B129: A.2.2.C30 | C129: IE1 | D129: Ducto flexible 20 cm | E129: 522 | F129: m | G129: 20 | I129: 0
B130: A.2.2.C31 | C130: IE1 | D130: Ducto flexible 15 cm | E130: 522 | F130: m | G130: 75 | I130: 0
B131: A.2.2.C32 | C131: IE1 | D131: Campana de acero inoxidable con sistema de grasero perimetral, descarga para limpieza, filtro trampa en acero inoxidable. Dimensiones 2,66x1,00. H=0,90m | E131: 522 | F131: un | G131: 1 | I131: 0
B132: A.2.2.C33 | C132: IE1 | D132: Materiales menores | E132: 522 | F132: gl | G132: 1 | I132: 0
B133: D - PRIMER PISO | I133: 0
D134: Aire Acondicionado | I134: 0
B135: A.2.2.D1 | C135: IE1 | D135: Cañería de polipropileno soldable por termofusión, con aislación. Diametro 90mm | E135: 522 | F135: ml | G135: 16 | I135: 0
B136: A.2.2.D2 | C136: IE1 | D136: Cañería de polipropileno soldable por termofusión, con aislación. Diametro 75mm | E136: 522 | F136: ml | G136: 34 | I136: 0
B137: A.2.2.D3 | C137: IE1 | D137: Cañería de polipropileno soldable por termofusión, con aislación. Diametro 63mm | E137: 522 | F137: ml | G137: 55 | I137: 0
B138: A.2.2.D4 | C138: IE1 | D138: Cañería de polipropileno soldable por termofusión, con aislación. Diametro 50m | E138: 522 | F138: ml | G138: 160 | I138: 0
B139: A.2.2.D5 | C139: IE1 | D139: Cañería de polipropileno soldable por termofusión, con aislación. Diametro 40mm | E139: 522 | F139: ml | G139: 78 | I139: =+G139*H139 -> 0
B140: A.2.2.D6 | C140: IE1 | D140: Cañería de polipropileno soldable por termofusión, con aislación. Diametro 32mm | E140: 522 | F140: ml | G140: 70 | I140: 0
B141: A.2.2.D7 | C141: IE1 | D141: Cañería de polipropileno soldable por termofusión, con aislación. Diametro 25mm | E141: 522 | F141: ml | G141: 300 | I141: 0
B142: A.2.2.D8 | C142: IE1 | D142: Colocación de equipos adosados a la losa. Fancoil, Unidad Split y Recuperadores de Calor | E142: 522 | F142: un | G142: 42 | I142: 0
B143: A.2.2.D9 | C143: IE1 | D143: Cañerías de drenaje en PVC soldable | E143: 522 | F143: gl | G143: 1 | I143: 0
B144: A.2.2.D10 | C144: IE1 | D144: Conexión de Fancoils, incluyendo llaves de cierre de igual diámetro con las cañerías | E144: 522 | F144: un | G144: 34 | I144: 0
B145: A.2.2.D11 | C145: IE1 | D145: Materiales menores | E145: 522 | F145: gl | G145: 1 | I145: 0
B146: A.2.2.D12 | C146: IE1 | D146: Ductos de paneles tipo ALUPIR, para distribucion de aire. | E146: 522 | F146: m | G146: 250 | I146: 0
B147: A.2.2.D13 | C147: IE1 | D147: Ducto flexible 35 cm | E147: 522 | F147: m | G147: 20 | I147: 0
B148: A.2.2.D14 | C148: IE1 | D148: Ducto flexible 30 cm | E148: 522 | F148: m | G148: 45 | I148: 0
B149: A.2.2.D15 | C149: IE1 | D149: Ducto flexible 25 cm | E149: 522 | F149: m | G149: 150 | I149: 0
B150: A.2.2.D16 | C150: IE1 | D150: Ducto flexible 20 cm | E150: 522 | F150: m | G150: 30 | I150: 0
B151: A.2.2.D17 | C151: IE1 | D151: Ducto flexible 15 cm | E151: 522 | F151: m | G151: 40 | I151: 0
B152: A.2.2.D18 | C152: IE1 | D152: Difusor Circular 30 cm de diametro | E152: 522 | F152: un | G152: 9 | I152: 0
B153: A.2.2.D19 | C153: IE1 | D153: Reja de retorno tipo AR basculante 60,5x60,5 | E153: 522 | F153: un | G153: 58 | I153: 0
B154: A.2.2.D20 | C154: IE1 | D154: Difusor para insuflamiento de aire DLQ 45x45 (p/cielo raso a junta tomada) | E154: 522 | F154: un | G154: 21 | I154: 0
B155: A.2.2.D21 | C155: IE1 | D155: Difusor tipo panel de 60,5x60,5 para insuflamiento de aire (p/cielo raso de placas) | E155: 522 | F155: un | G155: 50 | I155: 0
B156: A.2.2.D22 | C156: IE1 | D156: Reja tipo VAT 225mmx125 mm | E156: 522 | F156: un | G156: 3 | I156: 0
B157: A.2.2.D23 | C157: IE1 | D157: Reja tipo VAT 425mmx225 mm | E157: 522 | F157: un | G157: 16 | I157: 0
D158: Ventilación Forzada | I158: 0
B159: A.2.2.D24 | C159: IE1 | D159: Difusor circular 30 cm | E159: 522 | F159: un | G159: 18 | I159: 0
B160: A.2.2.D25 | C160: IE1 | D160: Reja de retorno tipo AR basculante 60,5x60,5 | E160: 522 | F160: un | G160: 5 | I160: 0
B161: A.2.2.D26 | C161: IE1 | D161: Reja VAT 425 mm x 225 mm | E161: 522 | F161: un | G161: 16 | I161: 0
B162: A.2.2.D27 | C162: IE1 | D162: Ductos de chapa galvanizada. Medida según plano. | E162: 522 | F162: m | G162: 400 | I162: 0
B163: A.2.2.D28 | C163: IE1 | D163: Ducto flexible 25 cm | E163: 522 | F163: m | G163: 75 | I163: 0
B164: A.2.2.D29 | C164: IE1 | D164: Ducto flexible 20 cm | E164: 522 | F164: m | G164: 20 | I164: 0
B165: A.2.2.D30 | C165: IE1 | D165: Ducto flexible 15 cm | E165: 522 | F165: m | G165: 95 | I165: 0
B166: A.2.2.D31 | C166: IE1 | D166: Materiales menores | E166: 522 | F166: gl | G166: 1 | I166: 0
B167: E - SEGUNDO PISO | I167: 0
D168: Aire Acondicionado | I168: 0
B169: A.2.2.E1 | C169: IE1 | D169: Cañería de polipropileno soldable por termofusión, con aislación. Diametro 90mm | E169: 522 | F169: ml | G169: 16 | I169: 0
B170: A.2.2.E2 | C170: IE1 | D170: Cañería de polipropileno soldable por termofusión, con aislación. Diametro 75mm | E170: 522 | F170: ml | G170: 60 | I170: 0
B171: A.2.2.E3 | C171: IE1 | D171: Cañería de polipropileno soldable por termofusión, con aislación. Diametro 63mm | E171: 522 | F171: ml | G171: 60 | I171: 0
B172: A.2.2.E4 | C172: IE1 | D172: Cañería de polipropileno soldable por termofusión, con aislación. Diametro 50m | E172: 522 | F172: ml | G172: 150 | I172: 0
B173: A.2.2.E5 | C173: IE1 | D173: Cañería de polipropileno soldable por termofusión, con aislación. Diametro 40mm | E173: 522 | F173: ml | G173: 60 | I173: 0
B174: A.2.2.E6 | C174: IE1 | D174: Cañería de polipropileno soldable por termofusión, con aislación. Diametro 32mm | E174: 522 | F174: ml | G174: 50 | I174: 0
B175: A.2.2.E7 | C175: IE1 | D175: Cañería de polipropileno soldable por termofusión, con aislación. Diametro 25mm | E175: 522 | F175: ml | G175: 250 | I175: 0
B176: A.2.2.E8 | C176: IE1 | D176: Colocación de equipos adosados a la losa. Fancoil, Unidad Split y Recuperadores de Calor | E176: 522 | F176: un | G176: 35 | I176: 0
B177: A.2.2.E9 | C177: IE1 | D177: Cañerías de drenaje en PVC soldable | E177: 522 | F177: gl | G177: 1 | I177: 0
B178: A.2.2.E10 | C178: IE1 | D178: Conexión de Fancoils, incluyendo llaves de cierre de igual diámetro con las cañerías | E178: 522 | F178: un | G178: 29 | I178: 0
B179: A.2.2.E11 | C179: IE1 | D179: Materiales menores | E179: 522 | F179: gl | G179: 1 | I179: 0
B180: A.2.2.E12 | C180: IE1 | D180: Ductos de paneles tipo ALUPIR, para distribucion de aire. | E180: 522 | F180: m | G180: 150 | I180: 0
B181: A.2.2.E13 | C181: IE1 | D181: Ducto flexible 30 cm | E181: 522 | F181: m | G181: 30 | I181: 0
B182: A.2.2.E14 | C182: IE1 | D182: Ducto flexible 25 cm | E182: 522 | F182: m | G182: 130 | I182: 0
B183: A.2.2.E15 | C183: IE1 | D183: Ducto flexible 20 cm | E183: 522 | F183: m | G183: 20 | I183: 0
B184: A.2.2.E16 | C184: IE1 | D184: Ducto flexible 15 cm | E184: 522 | F184: m | G184: 40 | I184: 0
B185: A.2.2.E17 | C185: IE1 | D185: Difusor Circular 30 cm de diametro | E185: 522 | F185: un | G185: 9 | I185: 0
B186: A.2.2.E18 | C186: IE1 | D186: Reja de retorno tipo AR basculante 60,5x60,5 | E186: 522 | F186: un | G186: 40 | I186: 0
B187: A.2.2.E19 | C187: IE1 | D187: Difusor para insuflamiento de aire DLQ 45x45 (p/cielo raso a junta tomada) | E187: 522 | F187: un | G187: 3 | I187: 0
B188: A.2.2.E20 | C188: IE1 | D188: Difusor tipo panel de 60,5x60,5 para insuflamiento de aire (p/cielo raso de placas) | E188: 522 | F188: un | G188: 54 | I188: 0
B189: A.2.2.E21 | C189: IE1 | D189: Reja tipo VAT 225mmx125 mm | E189: 522 | F189: un | G189: 3 | I189: 0
D190: Ventilación Forzada | I190: 0
B191: A.2.2.E22 | C191: IE1 | D191: Difusor circular 30 cm | E191: 522 | F191: un | G191: 12 | I191: 0
B192: A.2.2.E23 | C192: IE1 | D192: Reja de retorno tipo AR basculante 60,5x60,5 | E192: 522 | F192: un | G192: 4 | I192: 0
B193: A.2.2.E24 | C193: IE1 | D193: Reja VAT 425 mm x 225 | E193: 522 | F193: un | G193: 10 | I193: 0
B194: A.2.2.E25 | C194: IE1 | D194: Ductos de chapa galvanizada. Medida según plano. | E194: 522 | F194: m | G194: 345 | I194: 0
B195: A.2.2.E26 | C195: IE1 | D195: Ducto flexible 25 cm | E195: 522 | F195: m | G195: 60 | I195: 0
B196: A.2.2.E27 | C196: IE1 | D196: Ducto flexible 20 cm | E196: 522 | F196: m | G196: 20 | I196: 0
B197: A.2.2.E28 | C197: IE1 | D197: Ducto flexible 15 cm | E197: 522 | F197: m | G197: 70 | I197: 0
B198: A.2.2.E29 | C198: IE1 | D198: montaje de extractor para cocina con colector de grasa de 6.500 m3/h Cocina Café | E198: 522 | F198: un | G198: 1 | I198: 0
B199: A.2.2.E30 | C199: IE1 | D199: Materiales menores | E199: 522 | F199: gl | G199: 1 | I199: 0
B200: F - TERCER PISO | I200: 0
D201: Aire Acondicionado | I201: 0
... 199 more rows

Sheet A.3 Detecc. Inc.
B1: CORTE SUPREMA DE JUSTICIA - PROGRAMA DE LAS NACIONES UNIDAS PARA EL DESARROLLO
B2: "PROGRAMA DE INFRAESTRUCTURA EDILICIA CSJ - PNUD"
B3: =+Resumen!B3 -> SDP/14311/172/2023 - CONSTRUCCION DE LAS OBRAS CIVILES, INSTALACIONES Y MANTENIMIENTO POSTERIOR - JUZGADOS DE 1° INSTANCIA DE FERNANDO DE LA MORA.
B5: A.3 PLANILLA DE CÓMPUTO MÉTRICO Y PRESUPUESTO - SISTEMA DE DETECCION DE INCENDIOS
B6: Ítem | C6: Cód. | D6: Descripción de Rubros | E6: OG | F6: Un | G6: Cant. | H6: Precio Unit. | I6: Precio Total
C7: E.T. | H7: Gs. Iva Incluido | I7: Gs. Iva Incluido
B8: 1. EQUIPOS
B9: SISTEMA DE DETECCIÓN ELECTRÓNCIA DE INCENDIOS
B10: A.3.1.1 | C10: IE3 | D10: Central de alarmas específicamente para incendios; direccionable; capacidad final de hasta 1200 puntos direccionables. Con lazo de expansión. Incluye teclado alfanumérico de control; con pantalla de cristal liquido o pantalla tactil. Con capacidad para desplazar mensajes acerca del estado del sistema. Formato de modulo para montaje en Rack o pared. La central deberá contar con conexión a algún protocolo de comunicación abierto, KNX serial o IP, BACnet IP o Modbus TCP/IP, para integrarse al BMS, o mediante la provisión de un gateway a alguno de los protocolos citados. | E10: 538 | F10: un | G10: 1 | I10: =+G10*H10 -> 0
B11: A.3.1.2 | C11: IE3 | D11: Batería sellada de GEL 7,5 AH de bajo mantenimiento. Sin vapores tóxicos para la central de alarmas. La cantidad necesaria para el correcto funcionamiento del sistema | E11: 538 | F11: gl | G11: 1 | I11: 0
B12: A.3.1.3 | C12: IE3 | D12: Sirena de 30w para exterior con caja protectora antisabotaje | E12: 538 | F12: un | G12: 2 | I12: 0
B13: A.3.1.4 | C13: IE3 | D13: Software de la marca de la central para la instalacion en el servidor de integracion para el monitorio del sistema desde la sala de control. | E13: 538 | F13: un | G13: 1 | I13: 0
B14: A.3.1.5 | C14: IE3 | D14: Detector de humo y calor, direccionable. Detección fotoelectrónica de humo y sensor de variaciones bruscas de temperatura | E14: 538 | F14: un | G14: 627 | I14: 0
B15: A.3.1.6 | C15: IE3 | D15: Detector termovelocimétrico direccionable. Detección de variaciones bruscas de calor | E15: 538 | F15: un | G15: 67 | I15: 0
B16: A.3.1.7 | C16: IE3 | D16: Accionador manual de alarma de incendio, direccionable | E16: 538 | F16: un | G16: 67 | I16: 0
B17: A.3.1.8 | C17: IE3 | D17: Detector de movimiento de agua en cañerias de extincion de incendios. Flow Switch, en cada nivel. | E17: 538 | F17: un | G17: 11 | I17: 0
B18: A.3.1.9 | C18: IE3 | D18: Alarma audio visual específica para incendios. Sistema interior con luz estroboscópica integrada | E18: 538 | F18: un | G18: =+G16 -> 67 | I18: 0
B19: A.3.1.10 | C19: IE3 | D19: Carteles lumínicos LED de salida de emergencia para la evacuación. Iluminación autónoma | E19: 538 | F19: un | G19: 110 | I19: 0
B20: A.3.1.11 | C20: IE3 | D20: Equipos para iluminación LED de emergencia. Autónomos. | E20: 538 | F20: un | G20: 250 | I20: 0
B21: 2. MATERIALES, MONTAJE Y PUESTA EN MARCHA
B22: SISTEMA DE DETECCIÓN ELECTRÓNCIA DE INCENDIOS
B23: A.3.2.1 | C23: IE3 | D23: Cables, cajas, ductos, conectores y otros materiales menores para la operatividad del sistema. En Subsuelo 2 | E23: 538 | F23: gl | G23: 1 | I23: =+G23*H23 -> 0
B24: A.3.2.2 | C24: IE3 | D24: Cables, cajas, ductos, conectores y otros materiales menores para la operatividad del sistema. En Subsuelo 1 | E24: 538 | F24: gl | G24: 1 | I24: 0
B25: A.3.2.3 | C25: IE3 | D25: Cables, cajas, ductos, conectores y otros materiales menores para la operatividad del sistema. En Planta Baja | E25: 538 | F25: gl | G25: 1 | I25: =+G25*H25 -> 0
B26: A.3.2.4 | C26: IE3 | D26: Cables, cajas, ductos, conectores y otros materiales menores para la operatividad del sistema. En Planta Baja - Cafeteria y SUM. | E26: 538 | F26: gl | G26: 1 | I26: 0
B27: A.3.2.5 | C27: IE3 | D27: Cables, cajas, ductos, conectores y otros materiales menores para la operatividad del sistema. En Primer Piso | E27: 538 | F27: gl | G27: 1 | I27: 0
B28: A.3.2.6 | C28: IE3 | D28: Cables, cajas, ductos, conectores y otros materiales menores para la operatividad del sistema. En Primer Piso - Juzgados de Paz | E28: 538 | F28: gl | G28: 1 | I28: 0
B29: A.3.2.7 | C29: IE3 | D29: Cables, cajas, ductos, conectores y otros materiales menores para la operatividad del sistema. En Segundo Piso | E29: 538 | F29: gl | G29: 1 | I29: 0
B30: A.3.2.8 | C30: IE3 | D30: Cables, cajas, ductos, conectores y otros materiales menores para la operatividad del sistema. En Tercer Piso | E30: 538 | F30: gl | G30: 1 | I30: 0
B31: A.3.2.9 | C31: IE3 | D31: Cables, cajas, ductos, conectores y otros materiales menores para la operatividad del sistema. En Cuarto Piso | E31: 538 | F31: gl | G31: 1 | I31: 0
B32: A.3.2.10 | C32: IE3 | D32: Cables, cajas, ductos, conectores y otros materiales menores para la operatividad del sistema. En Quinto Piso | E32: 538 | F32: gl | G32: 1 | I32: 0
B33: A.3.2.11 | C33: IE3 | D33: Cables, cajas, ductos, conectores y otros materiales menores para la operatividad del sistema. En Sexto Piso | E33: 538 | F33: gl | G33: 1 | I33: 0
B34: A.3.2.12 | C34: IE3 | D34: Cables, cajas, ductos, conectores y otros materiales menores para la operatividad del sistema. En Septimo Piso - Azotea | E34: 538 | F34: gl | G34: 1 | I34: 0
B35: A.3.2.13 | C35: IE3 | D35: Instalación y puesta en marcha del sistema | E35: 538 | F35: gl | G35: 1 | I35: 0
B36: A.3.2.14 | C36: IE3 | D36: Asistencia técnica al integrador electrónico para la inclusión de los controladores del sistema de deteccion de incendios al BMS del Edificio. Instalacion del software de monitorio con los planos del edificio. | E36: 538 | F36: gl | G36: 1 | I36: 0
B37: A.3.2.15 | C37: IE3 | D37: Capacitación y adiestramiento en el uso; manuales de operación y mantenimiento del sistema | E37: 538 | F37: gl | G37: 1 | I37: 0
B39: Sub Total A.3 - SISTEMA DE DETECCION DE INCENDIOS | I39: =SUM(I10:I38) -> 0
B40: Son Guaraníes………………..

Sheet A.4 Int. Seg.
B1: CORTE SUPREMA DE JUSTICIA - PROGRAMA DE LAS NACIONES UNIDAS PARA EL DESARROLLO
B2: "PROGRAMA DE INFRAESTRUCTURA EDILICIA CSJ - PNUD"
B3: =+Resumen!B3 -> SDP/14311/172/2023 - CONSTRUCCION DE LAS OBRAS CIVILES, INSTALACIONES Y MANTENIMIENTO POSTERIOR - JUZGADOS DE 1° INSTANCIA DE FERNANDO DE LA MORA.
B5: A.4 PLANILLA DE CÓMPUTO MÉTRICO Y PRESUPUESTO - SISTEMA INTEGRADO DE SEGURIDAD ELECTRÓNICA
B6: Ítem | C6: Cód. | D6: Descripción de Rubros | E6: OG | F6: Un | G6: Cant. | H6: Precio Unit. | I6: Precio Total
C7: E.T. | H7: Gs. Iva Incluido | I7: Gs. Iva Incluido
B8: 1. EQUIPOS
B9: A - SISTEMA DE INTEGRACION ELECTRONICA
B10: A.4.1.A1 | C10: IE3 | D10: Servidor principal del sistema, computador de factor de forma para montaje en rack tipo servidor con licencia e instalación de la última versión sistema operativo Windows Profesional. | E10: 543 | F10: un | G10: 1 | I10: =+G10*H10 -> 0
B11: A.4.1.A2 | C11: IE3 | D11: UPS de 3.000 VA para PC de supervisión y servidor | E11: 543 | F11: un | G11: 3 | I11: 0
B12: A.4.1.A3 | C12: IE3 | D12: Computadora personal Procesador Intel Core i7 de ultima generacion y software original para operación y diagnóstico del sistema (integracion electronica, deteccion de incendios, control de accesos y circuito cerrado de video); sistema operativo Windows 10 profesional o superior. Teclado y Mouse. Tarjeta de video con 4 salidas HDMI para los monitores. PC PARA UTILIZACION DEL SISTEMA DE INTEGRACION ELECTRONICA, DETECCION DE INCENDIOS, CONTROL DE ACCESOS, CCTV, COMUNIACION ORAL, MONITOREO ASCENSORES) | E12: 543 | F12: un | G12: 1 | I12: 0
B13: A.4.1.A4 | C13: IE3 | D13: Monitor Color de 32" de alta definición; pantalla LCD-LED; Formato 16:9 (rectangular), de alta resolución. Con control de encendido, contraste y brillo. Funcionamiento 24/7. | E13: 538 | F13: un | G13: 1 | I13: 0
B14: A.4.1.A5 | C14: IE3 | D14: Monitor Color de 21" de alta definición; pantalla LCD-LED; Formato 16:9 (rectangular), de alta resolución. Con control de encendido, contraste y brillo. Funcionamiento 24/7. | E14: 538 | F14: un | G14: 3 | I14: 0
B15: A.4.1.A6 | C15: IE3 | D15: Software de adquisición de datos e interfaz de usuario, con capacidad para control de al menos 3.000 puntos, protocolos de comunicación KNX, BACnet, Modbus, con base de datos SQL. Incluye licencia perpetua. | E15: 538 | F15: un | G15: 1 | I15: 0
B16: A.4.1.A7 | C16: IE3 | D16: Modulo de relays con conexión a bus KNX para montaje en riel DIN, contactores y accesorios para el sistema de control de luces interiores, exteriores y todos los demas sistemas del edificio descritos en las especificaciones tecnicas. | E16: 538 | F16: gl | G16: 1 | I16: 0
B17: A.4.1.A8 | C17: IE3 | D17: Analizador de redes para montaje en tablero eléctrico protocolizado, misma marca que el tablero, con comunicación a protocolo abierto Modbus o BACnet | E17: 538 | F17: un | G17: 3 | I17: 0
B18: A.4.1.A9 | C18: IE3 | D18: Modulo de relays, contactores y equipos activos para el control y comando de un (1) porton eléctrico. | E18: 543 | F18: gl | G18: 1 | I18: 0
B19: A.4.1.A10 | C19: IE3 | D19: Modulo de entradas para integración al bus KNX para el monitorio e indicación de fallas de los distintos sistemas de bombas de agua. Sistema de presurizacion de agua corriente. Sistema de bombas de drenaje. Sistema de bombas de desagues. Sistema de Extincion de Incendios. Bombas dosificadoras de cloro, sensores de nivel de agua en tanques. | E19: 543 | F19: gl | G19: 1 | I19: 0
B20: A.4.1.A11 | C20: IE3 | D20: Soporte para 3 monitores de 21", Base metalica, regulacion de altura metalica, con regulacion de giro e inclinacion independiente. | E20: 541 | F20: un | G20: 5 | I20: 0
B21: A.4.1.A12 | C21: IE3 | D21: Soporte para monitor de 32". Base metalica para montar sobre estructura de madera de montante, permite el giro del monitor e inclinación | E21: 541 | F21: un | G21: 5 | I21: 0
B22: A.4.1.A13 | C22: IE3 | D22: Modulo de estacion de trabajo. Estructura con pedestales metálicos de tubos de acero de sección 50x30mm y 1,2mm de espesor, pintura epoxi en polvo aplicado electroestáticamente, tapas molduradas de PVC en los extremos de los tubos. Plano de trabajo y tapa cubre piernas en placa melamínica de baja presión (BP) de 18mm color a definir; cantoneras de 15x30mm molduradas de goma color negro; reguladores metálicos de altura con bases de goma. Sujeción entre placa y estructura metalica con angulos metalicos y tornillos. Medidas ver plano INT 15 | E22: 538 | F22: un | G22: 6 | I22: 0
B23: A.4.1.A14 | C23: IE3 | D23: Montante para bajada de cables de señales debiles y electricidad, estructura metalica revestida con madera aglomerada melamina, sistema de desarme de una cara con tornillos. Medidas ver plano INT 15 | E23: 541 | F23: un | G23: 2 | I23: 0
B24: B - CIRCUITO CERRADO DE VIDEO IP (CCTV)
B25: A.4.1.B1 | C25: IE3 | D25: Equipo de administracion central para los sistemas de alarma contra intrusos, control de accesos y CCTV. Grabación digital para la administracion de hasta 256 canales, sistema operativo Windows Server 64 Bit o Linux, Memoria RAM 32G DDR4 o superior, Tarjeta de red: 2 x 1GbE, Almacenamiento del sistema operativo en disco SATA de 500 GB. Conexión a LAN e Internet. Incluir licencias para control remoto. Formato de grabacion h.265 o superior. Sistema de montaje en Rack. | E25: 538 | F25: un | G25: 1 | I25: =+G25*H25 -> 0
B26: A.4.1.B2 | C26: IE3 | D26: Grabador y administrador del sistema de CCTV, de hasta 128 canales. Almacenamientos de imagenes en 18 discos de 8 TB total capacidad 144 Tb. Formato de grabacion H265 o superior. Conexión a LAN e Internet. Incluir licencias para control remoto. Sistema de montaje en Rack. Funcion de recuperacion de datos en caso de falla de disco (RAID), intercambio de discos en caliente (HOT SWAP), 18 bahias de discos como minimo, tecnologia defiltro de falsas alarmas. El sistema debera almacenar como minimo 30 dias. Sistema de montaje en Rack. | E26: 538 | F26: un | G26: 2 | I26: 0
B27: A.4.1.B3 | C27: IE3 | D27: Switch de borde para interconexión de los demás equipos. 24 puertos SFPs opticos 1000 BaseLX, half/full duplex, autodetectable, MDI/MDIX. | E27: 543 | F27: un | G27: 1
B28: A.4.1.B4 | C28: IE3 | D28: Switch de 24 puertos PoE+, con tarjeta de Stack de 10/100/1000. Dos puertos con fibra optica. | E28: 543 | F28: un | G28: 13 | I28: =+G28*H28 -> 0
B29: A.4.1.B5 | C29: IE3 | D29: Monitor Color de 32" de alta definición; pantalla LCD-LED; Formato 16:9 (rectangular), de alta resolución. Con control de encendido, contraste y brillo. Funcionamiento 24/7. | E29: 543 | F29: un | G29: 4 | I29: 0
B30: A.4.1.B6 | C30: IE3 | D30: Monitor Color de 21" de alta definición; pantalla LCD-LED; Formato 16:9 (rectangular), de alta resolución. Con control de encendido, contraste y brillo. Funcionamiento 24/7. | E30: 543 | F30: un | G30: 12 | I30: 0
B31: A.4.1.B7 | C31: IE3 | D31: Equipos de administracion del sistema de camaras en muebles de operario de sala de control. | E31: 543 | F31: un | G31: 4 | I31: 0
B32: A.4.1.B8 | C32: IE3 | D32: Fuente ininterrumpida de energía (UPS) de 3000 VA para equipo de grabacion digital (1), switches (9) y Adm. Y monitores (4), duración mínima 2 (dos) horas | E32: 543 | F32: un | G32: 14 | I32: 0
B33: A.4.1.B9 | C33: IE3 | D33: Cámara IP PoE+ - móvil PTZ para exterior color, resolucion maxima 2688x1520. Sensibilidad a la Luz Color (33ms) 0,20 lux, (250ms) 0,025 lux, Monocromatico (33ms) 0,06 lux, (250ms) 0,008 lux; lente de autoiris de 4,7mm (gran angular) - 94 mm (teleobjetivo), zoom optico 30X / Digital 12X; Sensor CMOS de 9mm. Relacion de Aspecto 16:9. Compresion de Video H.264, MJPEG, MPEG4. Movimiento PAN (rotación continua), movimiento manual con Joystick y TILT (< 90°) Incluye gabinete para exteriores, Domo inferior ahumado, grado de proteccion IP67. Ventilador desempañador incorporado. Soporte alto en caño galvanizado esmaltado de 2 " de diametro | E33: 538 | F33: un | G33: 2 | I33: 0
B34: A.4.1.B10 | C34: IE3 | D34: Cámara IP BULLET PoE+ color. Dispositivo de Imagen 4 Mpx, Sensor CMOS de 1/3 pulg. Resolucion maxima de 2688x1520 (4 Mpx); Iluminacion minima f/1.4 Color 0.005 lux, Mocromatico 0.00 lux (IR LED on); Lente Varifocal de 2,8-12mm autoriris. Relacion de aspecto 16:9. Compresion de Video H.265, MJPEG. grado de proteccion IP67. Con micro SD de 32Gb. Ducto flexible de acero inoxidable para cables. Soporte ajustable en 360°. Tecnologia con filtro de falsas alarmas. Infrarrojo alcance de 55 metros o superior. | E34: 538 | F34: un | G34: 227 | I34: 0
B35: A.4.1.B11 | C35: IE3 | D35: Cámara IP DOMO PoE color. Dispositivo de Imagen 4 Mpx, Sensor 1/3" CMOS. Resolucion maxima de 2688×1520; Iluminacion minima f/1.6 Color 0.005lux, f/1.4 Monocromatico: 0 lux; Lente fijo de 2.8mm. Relacion de aspecto 16:9. Compresion de Video H.265, MJPEG. Deberá contar con micrófono incorporado y ranura para memoria micro SD. Conexión wifi. A fijar en cielorraso del ascensor. | E35: 538 | F35: un | G35: 6 | I35: 0
B36: C - SISTEMA DE ALARMA CONTRA INTRUSOS Y SEGURIDAD
B37: A.4.1.C1 | C37: IE3 | D37: Central de alarma de 384 zonas con expansores; con módem incorporado que permite conexión a Estación Central de Monitoreo, operada por códigos. La central deberá contar con conexión a algún protocolo de comunicación integrado al sistema de CCTV. | E37: 538 | F37: un | G37: 1 | I37: =+G37*H37 -> 0
B38: A.4.1.C2 | C38: IE3 | D38: Teclado alfanumérico de control con pantalla de cristal líquido. Con capacidad de desplegar mensajes acerca del estado del sistema e introducción de códigos de activación y desactivación | E38: 543 | F38: un | G38: 4 | I38: 0
B39: A.4.1.C3 | C39: IE3 | D39: Batería sellada de GEL 7,5 AH, de bajo mantenimiento. Sin vapores tóxicos. Para el sistema completo. | E39: 538 | F39: gl | G39: 1 | I39: 0
B40: A.4.1.C4 | C40: IE3 | D40: Licencia perpetua para el sistema de alarma contra intrusos para la integracion al sistema y software de CCTV. | E40: 538 | F40: un | G40: 1 | I40: 0
B41: A.4.1.C5 | C41: IE3 | D41: Sirena de 30W para exterior con caja protectora antisabotaje | E41: 538 | F41: un | G41: 2 | I41: 0
B42: A.4.1.C6 | C42: IE3 | D42: Detector de apertura de puertas, ventanas y portones; contacto magnético externo. Para los portones exteriores se debera considerar para esa utilizacion. | E42: 538 | F42: un | G42: 368 | I42: 0
B43: A.4.1.C7 | C43: IE3 | D43: Detector de movimiento de doble tecnología. Por rayo infrarrojo pasivo y por microondas, con compensación de temperatura, ajuste de alcance y sensibilidad | E43: 538 | F43: un | G43: 275 | I43: 0
B44: A.4.1.C8 | C44: IE3 | D44: Botón pulsador de pánico, para situaciones de emergencia | E44: 538 | F44: un | G44: 42 | I44: 0
B45: A.4.1.C9 | C45: IE3 | D45: Cerradura electromagnética de seguridad, fuerza 2000 libras. Con indicador audible y visual de la apertura; para aberturas metalicas o de madera. Incluye soporte de montaje y transformador para su alimentacion. Sectores de Alta Seguridad, retenes y circulaciones. | E45: 538 | F45: un | G45: 14 | I45: 0
B46: A.4.1.C10 | C46: IE3 | D46: Cerradura electromagnética de seguridad, fuerza 300 libras. Con indicador audible y visual de la apertura; para aberturas de madera o mampara. Incluye soporte de montaje y transformador para su alimentacion. | E46: 538 | F46: un | G46: 31 | I46: 0
B47: A.4.1.C11 | C47: IE3 | D47: Brazo hidráulico tipo Yale, con mecanismo de retorno automático de puertas. Incluye soportes. | E47: 538 | F47: un | G47: 45 | I47: 0
B48: A.4.1.C12 | C48: IE3 | D48: Boton pulsador o sensor de proximidad para apertura de puertas con cerradura electromagnetica. Incluye base o soporte. | E48: 538 | F48: un | G48: 45 | I48: 0
B49: D - CONTROL DE ACCESOS CON TARJETAS DE PROXIMIDAD
B50: A.4.1.D1 | C50: IE3 | D50: TABLERO CONTROL DE ACCESO PARA 4 PUERTAS. Eventos: 300,000(expandible).Control de Acceso por Horarios y Puertas. Verificación Multi-Usuario. Función de primer tarjeta, super tarjeta y super contraseña. Función de esclusa y antipassback. Protocolos: TCP/IP, 4 Entradas Wiegand Multi-Formato. 8 entradas RS-485. 4 Salida de Rele NC/NO/COM, 4 Entradas de alarma, 4 Entrada para sensor de puerta | E50: 538 | F50: un | G50: 4 | I50: =+G50*H50 -> 0
B51: A.4.1.D2 | C51: IE3 | D51: Licencia perpetua para el sistema de control de accesos, gestion de los terminales faciales y controladoras para la integracion al sistema y software de CCTV. | E51: 538 | F51: un | G51: 1 | I51: 0
B52: A.4.1.D3 | C52: IE3 | D52: Lectores de tarjetas de proximidad con rango de operación entre 10 y 20cm; detector magnético de apertura de puerta | E52: 538 | F52: un | G52: 13 | I52: 0
B53: A.4.1.D4 | C53: IE3 | D53: Cerradura electromagnética de seguridad, fuerza 600 libras. Con indicador audible y visual de la apertura; para aberturas de vidrio, madera o metalica. Incluye soporte de montaje y transformador para su alimentacion. | E53: 538 | F53: un | G53: 13 | I53: 0
B54: A.4.1.D5 | C54: IE3 | D54: Brazo hidráulico tipo Yale, con mecanismo de retorno automático de puertas | E54: 538 | F54: un | G54: 13 | I54: 0
B55: A.4.1.D6 | C55: IE3 | D55: Boton pulsador o sensor de proximidad para apertura de puertas con cerradura electromagnetica | E55: 538 | F55: un | G55: 13 | I55: 0
B56: A.4.1.D7 | C56: IE3 | D56: Batería sellada de GEL de 7,5 AH de bajo mantenimiento. Libre de vapores tóxicos | E56: 538 | F56: gl | G56: 1 | I56: 0
B57: A.4.1.D8 | C57: IE3 | D57: Tarjetas de proximidad para identificación personal para funcionarios | E57: 538 | F57: un | G57: 300 | I57: 0
B58: E - GRABACION EN CAMARA GESSEL - SISTEMA DE VIDEO Y GRABACION
B59: A.4.1.E1 | C59: IE3 | D59: Cámaras fijas color de alta resolución (690 líneas de TV) , tipo domo | E59: 538 | F59: un | G59: 6
B60: A.4.1.E2 | C60: IE3 | D60: Cámara color móvil, con movimientos pan/tilt y lente zoom de 20 X. | E60: 538 | F60: un | G60: 2
B61: A.4.1.E3 | C61: IE3 | D61: Equipo grabador digital de video con entrada para 4 canales de video y audio; CON salidas para audio y video. Función looping. Disco duro 1,5 TB . Control PTZ a través del mouse. | E61: 538 | F61: un | G61: 2
B62: A.4.1.E4 | C62: IE3 | D62: Controlador de cámaras móviles pan/tilt y de lentes zoom, tipo Joystick | E62: 538 | F62: un | G62: 2
B63: A.4.1.E5 | C63: IE3 | D63: Monitor de visualización, 19", color , LCD-LED. Formato 4:3 (cuadrado) | E63: 538 | F63: un | G63: 2
B64: A.4.1.E6 | C64: IE3 | D64: U.P.S. capacidad 2000 VA, para respaldo de cámaras. Monitores, grabador digital y todo el sisteam de audio | E64: 538 | F64: un | G64: 4
B65: 2. MATERIALES, MONTAJE Y PUESTA EN MARCHA
B66: A - SISTEMA DE INTEGRACION ELECTRONICA
B67: A.4.2.A1 | C67: IE3 | D67: Cables, cajas, ductos, conectores y otros materiales menores para la operatividad del sistema. En Subsuelo 2 | E67: 538 | F67: gl | G67: 1 | I67: =+G67*H67 -> 0
B68: A.4.2.A2 | C68: IE3 | D68: Cables, cajas, ductos, conectores y otros materiales menores para la operatividad del sistema. En Subsuelo 1 | E68: 538 | F68: gl | G68: 1 | I68: 0
B69: A.4.2.A3 | C69: IE3 | D69: Cables, cajas, ductos, conectores y otros materiales menores para la operatividad del sistema. En Planta Baja | E69: 538 | F69: gl | G69: 1 | I69: 0
B70: A.4.2.A4 | C70: IE3 | D70: Cables, cajas, ductos, conectores y otros materiales menores para la operatividad del sistema. En Planta Baja - Cafeteria y SUM. | E70: 538 | F70: gl | G70: 1 | I70: 0
B71: A.4.2.A5 | C71: IE3 | D71: Cables, cajas, ductos, conectores y otros materiales menores para la operatividad del sistema. En Primer Piso | E71: 538 | F71: gl | G71: 1 | I71: 0
B72: A.4.2.A6 | C72: IE3 | D72: Cables, cajas, ductos, conectores y otros materiales menores para la operatividad del sistema. En Primer Piso - Juzgados de Paz | E72: 538 | F72: gl | G72: 1 | I72: 0
B73: A.4.2.A7 | C73: IE3 | D73: Cables, cajas, ductos, conectores y otros materiales menores para la operatividad del sistema. En el Segundo Piso | E73: 538 | F73: gl | G73: 1 | I73: 0
B74: A.4.2.A8 | C74: IE3 | D74: Cables, cajas, ductos, conectores y otros materiales menores para la operatividad del sistema. En el Tercer Piso | E74: 538 | F74: gl | G74: 1 | I74: 0
B75: A.4.2.A9 | C75: IE3 | D75: Cables, cajas, ductos, conectores y otros materiales menores para la operatividad del sistema. En el Cuarto Piso | E75: 538 | F75: gl | G75: 1 | I75: 0
B76: A.4.2.A10 | C76: IE3 | D76: Cables, cajas, ductos, conectores y otros materiales menores para la operatividad del sistema. En el Quinto Piso | E76: 538 | F76: gl | G76: 1 | I76: 0
B77: A.4.2.A11 | C77: IE3 | D77: Cables, cajas, ductos, conectores y otros materiales menores para la operatividad del sistema. En el Sexto Piso | E77: 538 | F77: gl | G77: 1 | I77: 0
B78: A.4.2.A12 | C78: IE3 | D78: Cables, cajas, ductos, conectores y otros materiales menores para la operatividad del sistema. En el Septimo Piso - Azotea | E78: 538 | F78: gl | G78: 1 | I78: 0
B79: A.4.2.A13 | C79: IE3 | D79: Cables, cajas, ductos, conectores y otros materiales menores para la operatividad del sistema. En el exterior, salas de maquinas, tanques, etc. | E79: 538 | F79: gl | G79: 1 | I79: 0
B80: A.4.2.A14 | C80: IE3 | D80: Arquitectura y diseño de red, desarrollo de gráficos e interfaz de usuario, parametrización y programación de los puntos y lógica de control y calendarios. | E80: 538 | F80: gl | G80: 1 | I80: 0
B81: A.4.2.A15 | C81: IE3 | D81: Integración lógica del sistema de ascensores, generador, alarma contra intrusos, alarma de incendios, control de accesos. | E81: 538 | F81: gl | G81: 1 | I81: 0
B82: A.4.2.A16 | C82: IE3 | D82: Instalación, pruebas y puesta en marcha del sistema | E82: 538 | F82: gl | G82: 1 | I82: 0
B83: A.4.2.A17 | C83: IE3 | D83: Capacitación y adiestramiento del uso; manuales de operación y mantenimiento | E83: 538 | F83: gl | G83: 1 | I83: 0
B84: B - CIRCUITO CERRADO DE VIDEO IP (CCTV)
B85: A.4.2.B1 | C85: IE3 | D85: Cables CAT.6, cajas, ductos, conectores y otros materiales menores para la operatividad del sistema. En Subsuelo 2. | E85: 538 | F85: gl | G85: 1 | I85: =+G85*H85 -> 0
B86: A.4.2.B2 | C86: IE3 | D86: Cables CAT.6, cajas, ductos, conectores y otros materiales menores para la operatividad del sistema. En Subsuelo 1. | E86: 538 | F86: gl | G86: 1 | I86: 0
B87: A.4.2.B3 | C87: IE3 | D87: Cables CAT.6, cajas, ductos, conectores y otros materiales menores para la operatividad del sistema. En Planta Baja | E87: 538 | F87: gl | G87: 1 | I87: 0
B88: A.4.2.B4 | C88: IE3 | D88: Cables CAT.6, cajas, ductos, conectores y otros materiales menores para la operatividad del sistema. En Planta Baja - Cafeteria y SUM | E88: 538 | F88: gl | G88: 1 | I88: 0
B89: A.4.2.B5 | C89: IE3 | D89: Cables CAT.6, cajas, ductos, conectores y otros materiales menores para la operatividad del sistema. En el Primer Piso | E89: 538 | F89: gl | G89: 1 | I89: 0
B90: A.4.2.B6 | C90: IE3 | D90: Cables CAT.6, cajas, ductos, conectores y otros materiales menores para la operatividad del sistema. En el Primer Piso - Juzgados de Paz | E90: 538 | F90: gl | G90: 1 | I90: 0
B91: A.4.2.B7 | C91: IE3 | D91: Cables CAT.6, cajas, ductos, conectores y otros materiales menores para la operatividad del sistema. En el Segundo Piso | E91: 538 | F91: gl | G91: 1 | I91: 0
B92: A.4.2.B8 | C92: IE3 | D92: Cables CAT.6, cajas, ductos, conectores y otros materiales menores para la operatividad del sistema. En el Tercer Piso | E92: 538 | F92: gl | G92: 1 | I92: 0
B93: A.4.2.B9 | C93: IE3 | D93: Cables CAT.6, cajas, ductos, conectores y otros materiales menores para la operatividad del sistema. En el Cuarto Piso | E93: 538 | F93: gl | G93: 1 | I93: 0
B94: A.4.2.B10 | C94: IE3 | D94: Cables CAT.6, cajas, ductos, conectores y otros materiales menores para la operatividad del sistema. En el Quinto Piso | E94: 538 | F94: gl | G94: 1 | I94: 0
B95: A.4.2.B11 | C95: IE3 | D95: Cables CAT.6, cajas, ductos, conectores y otros materiales menores para la operatividad del sistema. En el Sexto Piso | E95: 538 | F95: gl | G95: 1 | I95: 0
B96: A.4.2.B12 | C96: IE3 | D96: Cables CAT.6, cajas, ductos, conectores y otros materiales menores para la operatividad del sistema. En el Septimo Piso - Azotea | E96: 538 | F96: gl | G96: 1 | I96: 0
B97: A.4.2.B13 | C97: IE3 | D97: Cables CAT.6, cajas, ductos, conectores y otros materiales menores para la operatividad del sistema. En exteriores | E97: 538 | F97: gl | G97: 1 | I97: 0
B98: A.4.2.B14 | C98: IE3 | D98: Cableado CAT. 6 en montante, redundante entre los ditintos switches de los pisos y el de planta baja, segun planos | E98: 538 | F98: gl | G98: 1 | I98: 0
B99: A.4.2.B15 | C99: IE3 | D99: Rack abierto de 2 parantes 49u para montaje de equipos de CCTV | E99: 538 | F99: un | G99: 8 | I99: 0
B100: A.4.2.B16 | C100: IE3 | D100: Rack cerrado de 4 parantes 5U para montaje en pared de 19", puerta frontal de vidrio templado, laterales superir e inferior desmontables y ventildor de refirgeracion. Todo el conjunto debera estar aterrado. Ubicado en el gabinete tecnico de planta baja SUM. | E100: 538 | F100: un | G100: 1 | I100: 0
B101: A.4.2.B17 | C101: IE3 | D101: Instalación y puesta en marcha del sistema | E101: 538 | F101: gl | G101: 1 | I101: 0
B102: A.4.2.B18 | C102: IE3 | D102: Asistencia técnica al integrador electrónico para la inclusión de los controladores del circuito cerrado de CCTV al BMS del Edificio | E102: 538 | F102: gl | G102: 1 | I102: 0
B103: A.4.2.B19 | C103: IE3 | D103: Capacitacion y adiestramiento del uso; manuales de operación y mantenimiento | E103: 538 | F103: gl | G103: 1 | I103: 0
B104: C - SISTEMA DE ALARMA CONTRA INTRUSOS Y SEGURIDAD
B105: A.4.2.C1 | C105: IE3 | D105: Cables, cajas, ductos, conectores y otros materiales menores para la operatividad del sistema. En Subsuelo 2 | E105: 538 | F105: gl | G105: 1 | I105: =+G105*H105 -> 0
B106: A.4.2.C2 | C106: IE3 | D106: Cables, cajas, ductos, conectores y otros materiales menores para la operatividad del sistema. En Subsuelo 1 | E106: 538 | F106: gl | G106: 1 | I106: 0
B107: A.4.2.C3 | C107: IE3 | D107: Cables, cajas, ductos, conectores y otros materiales menores para la operatividad del sistema. En Planta Baja | E107: 538 | F107: gl | G107: 1 | I107: 0
B108: A.4.2.C4 | C108: IE3 | D108: Cables, cajas, ductos, conectores y otros materiales menores para la operatividad del sistema. En Planta Baja - Cafeteria y SUM. | E108: 538 | F108: gl | G108: 1 | I108: 0
B109: A.4.2.C5 | C109: IE3 | D109: Cables, cajas, ductos, conectores y otros materiales menores para la operatividad del sistema. En el Primer Piso | E109: 538 | F109: gl | G109: 1 | I109: 0
B110: A.4.2.C6 | C110: IE3 | D110: Cables, cajas, ductos, conectores y otros materiales menores para la operatividad del sistema. En el Primer Piso - Juzgados de Paz. | E110: 538 | F110: gl | G110: 1 | I110: 0
B111: A.4.2.C7 | C111: IE3 | D111: Cables, cajas, ductos, conectores y otros materiales menores para la operatividad del sistema. En el Segundo Piso | E111: 538 | F111: gl | G111: 1 | I111: 0
B112: A.4.2.C8 | C112: IE3 | D112: Cables, cajas, ductos, conectores y otros materiales menores para la operatividad del sistema. En el Tercer Piso | E112: 538 | F112: gl | G112: 1 | I112: 0
B113: A.4.2.C9 | C113: IE3 | D113: Cables, cajas, ductos, conectores y otros materiales menores para la operatividad del sistema. En el Cuarto Piso | E113: 538 | F113: gl | G113: 1 | I113: 0
B114: A.4.2.C10 | C114: IE3 | D114: Cables, cajas, ductos, conectores y otros materiales menores para la operatividad del sistema. En el Quinto Piso | E114: 538 | F114: gl | G114: 1 | I114: 0
B115: A.4.2.C11 | C115: IE3 | D115: Cables, cajas, ductos, conectores y otros materiales menores para la operatividad del sistema. En el Sexto Piso | E115: 538 | F115: gl | G115: 1 | I115: 0
B116: A.4.2.C12 | C116: IE3 | D116: Cables, cajas, ductos, conectores y otros materiales menores para la operatividad del sistema. En el Septimo Piso - Azotea | E116: 538 | F116: gl | G116: 1 | I116: 0
B117: A.4.2.C13 | C117: IE3 | D117: Cables, cajas, ductos, conectores y otros materiales menores para la operatividad del sistema. En exteriores | E117: 538 | F117: gl | G117: 1 | I117: 0
B118: A.4.2.C14 | C118: IE3 | D118: Instalación y puesta en marcha del sistema | E118: 538 | F118: gl | G118: 1 | I118: 0
B119: A.4.2.C15 | C119: IE3 | D119: Capacitación y adiestramiento del uso; manuales de operación y mantenimiento | E119: 538 | F119: gl | G119: 1 | I119: 0
B120: D - CONTROL DE ACCESOS CON TARJETAS DE PROXIMIDAD
B121: A.4.2.D1 | C121: IE3 | D121: Cables, cajas, ductos, conectores y otros materiales menores para la operatividad del sistema. En Subsuelo 2. | E121: 538 | F121: gl | G121: 1 | I121: =+G121*H121 -> 0
B122: A.4.2.D2 | C122: IE3 | D122: Cables, cajas, ductos, conectores y otros materiales menores para la operatividad del sistema. En Subsuelo 1 | E122: 538 | F122: gl | G122: 1 | I122: 0
B123: A.4.2.D3 | C123: IE3 | D123: Cables, cajas, ductos, conectores y otros materiales menores para la operatividad del sistema. En Planta Baja | E123: 538 | F123: gl | G123: 1 | I123: 0
B124: A.4.2.D4 | C124: IE3 | D124: Cables, cajas, ductos, conectores y otros materiales menores para la operatividad del sistema. En el Primer Piso | E124: 538 | F124: gl | G124: 1 | I124: 0
B125: A.4.2.D5 | C125: IE3 | D125: Cables, cajas, ductos, conectores y otros materiales menores para la operatividad del sistema. En el Segundo Piso | E125: 538 | F125: gl | G125: 1 | I125: 0
B126: A.4.2.D6 | C126: IE3 | D126: Cables, cajas, ductos, conectores y otros materiales menores para la operatividad del sistema. En el Tercer Piso | E126: 538 | F126: gl | G126: 1 | I126: 0
B127: A.4.2.D7 | C127: IE3 | D127: Cables, cajas, ductos, conectores y otros materiales menores para la operatividad del sistema. En el Cuarto Piso | E127: 538 | F127: gl | G127: 1 | I127: 0
B128: A.4.2.D8 | C128: IE3 | D128: Cables, cajas, ductos, conectores y otros materiales menores para la operatividad del sistema. En el Quinto Piso | E128: 538 | F128: gl | G128: 1 | I128: 0
B129: A.4.2.D9 | C129: IE3 | D129: Cables, cajas, ductos, conectores y otros materiales menores para la operatividad del sistema. En el Sexto Piso | E129: 538 | F129: gl | G129: 1 | I129: 0
B130: A.4.2.D10 | C130: IE3 | D130: Cables, cajas, ductos, conectores y otros materiales menores para la operatividad del sistema. En el Septimo Piso - Azotea | E130: 538 | F130: gl | G130: 1 | I130: 0
B131: A.4.2.D11 | C131: IE3 | D131: Instalación y puesta en marcha del sistema | E131: 538 | F131: gl | G131: 1 | I131: 0
B132: A.4.2.D12 | C132: IE3 | D132: Capacitación y adiestramiento del uso; manuales de operación y mantenimiento | E132: 538 | F132: gl | G132: 1 | I132: 0
B133: E - GRABACION EN CAMARA GESSEL - SISTEMA DE VIDEO Y GRABACION
B134: A.4.2.E1 | C134: IE3 | D134: Materiales de instalación: ductos, cables, conectores, fuentes de energía, accesorios. | E134: 538 | F134: gl | G134: 1 | I134: =+G134*H134 -> 0
B135: A.4.2.E2 | C135: IE3 | D135: Mano de Obra: ducteado, cableado, conexiones, instalación de equipos, programación, puesta en marcha, capacitación. | E135: 538 | F135: gl | G135: 1 | I135: 0
B136: A.4.2.E3 | C136: IE3 | D136: Instalación y puesta en marcha del sistema | E136: 538 | F136: gl | G136: 1 | I136: =+G136*H136 -> 0
B137: A.4.2.E4 | C137: IE3 | D137: Capacitación y adiestramiento; manuales de operación y mantenimiento | E137: 538 | F137: gl | G137: 1 | I137: 0
B138: Sub Total A.4 - SISTEMA INTEGRADO DE SEGURIDAD ELECTRONICA | I138: =SUM(I10:I137) -> 0
B139: Son Guaraníes………………..

Sheet A.5 Com. Oral
B1: CORTE SUPREMA DE JUSTICIA - PROGRAMA DE LAS NACIONES UNIDAS PARA EL DESARROLLO
B2: "PROGRAMA DE INFRAESTRUCTURA EDILICIA CSJ - PNUD"
B3: =+Resumen!B3 -> SDP/14311/172/2023 - CONSTRUCCION DE LAS OBRAS CIVILES, INSTALACIONES Y MANTENIMIENTO POSTERIOR - JUZGADOS DE 1° INSTANCIA DE FERNANDO DE LA MORA.
B5: A.5 PLANILLA DE CÓMPUTO MÉTRICO Y PRESUPUESTO - COMUNICACIÓN ORAL
B6: Ítem | C6: Cód. | D6: Descripción de Rubros | E6: OG | F6: Un | G6: Cant. | H6: Precio Unit. | I6: Precio Total
C7: E.T. | H7: Gs. Iva Incluido | I7: Gs. Iva Incluido
B8: 1. EQUIPOS
B9: A - COMUNICACIÓN ORAL Y MÚSICA FUNCIONAL
B10: A.5.1.A1 | C10: IE4 | D10: Equipo amplificador de audio, tipo profesional capacidad de salida de 500W. Formato para montaje en Rack. | E10: 536 | F10: un | G10: 4 | I10: =+G10*H10 -> 0
B11: A.5.1.A2 | C11: IE4 | D11: Equipo de audio para conexión a red de datos, funciones de sintonizador de Radio FM y AM, Reproductor de musicas en formato MP3 desde el servidor del sistema de integracion electronica, funcion de entrada de microfono para comunicaciones orales desde la sala de control, software para instalaciones en PC de la integracion electronica | E11: 536 | F11: un | G11: 1 | I11: =+G11*H11 -> 0
B12: A.5.1.A3 | C12: IE4 | D12: Parlantes para interiores de 8"; de 8 ohm de impedancia; embutidos en cielorraso; color blanco | E12: 536 | F12: un | G12: 152 | I12: 0
B13: A.5.1.A4 | C13: IE4 | D13: Parlantes para interiores de 8"; de 8 ohm de impedancia; adosados a la losa con caja metalica o plastica; color blanco | E13: 536 | F13: un | G13: 10 | I13: 0
B14: A.5.1.A5 | C14: IE4 | D14: Micrófono profesional; cápsula condensadora; con pedestal de mesa y cuello flexible. Para sala de control. | E14: 536 | F14: un | G14: 1 | I14: 0
B15: A.5.1.A6 | C15: IE4 | D15: Reóstato para control de volumen, en muros | E15: 536 | F15: un | G15: 27 | I15: 0
B16: B - SONORIZACIÓN DE LA SALA DE JUICIOS ORALES - SUM
B17: A.5.1.B1 | C17: IE4 | D17: Equipo amplificador de audio, tipo profesional capacidad de 120W salas de Juicios Orales (4) y SUM (1) | E17: 536 | F17: un | G17: 5 | I17: 0
B18: A.5.1.B2 | C18: IE4 | D18: Equipo mezclador de audio, tipo profesional 8 canales de entrada y salida. Salas de Juicios Orales (4) y SUM (1) | E18: 536 | F18: un | G18: 5 | I18: 0
B19: A.5.1.B3 | C19: IE4 | D19: Parlantes de 6", de 16 ohm de impedancia; con soporte aplicado a muros | E19: 536 | F19: un | G19: 30 | I19: 0
B20: A.5.1.B4 | C20: IE4 | D20: Micrófono profesional inalámbrico. | E20: 536 | F20: un | G20: 5 | I20: 0
B21: A.5.1.B5 | C21: IE4 | D21: Micrófono profesional; cápsula condensadora; con pedestal de mesa y cuello flexible | E21: 536 | F21: un | G21: 26 | I21: 0
B22: A.5.1.B6 | C22: IE4 | D22: Pedestal metálico alto para micrófono; regulable, tipo profesional | E22: 536 | F22: un | G22: 5 | I22: 0
B23: D - SONORIZACIÓN Y GRABACION EN CAMARA GESSEL - AUDIO
B24: A.5.1.D1 | C24: IE4 | D24: Mezclador de audio con capacidad minima de 6 canales | E24: 536 | F24: un | G24: 2 | I24: 0
B25: A.5.1.D2 | C25: IE4 | D25: Amplificador de audio, potencia 60 Watts | E25: 536 | F25: un | G25: 2 | I25: 0
B26: A.5.1.D3 | C26: IE4 | D26: Micrófonos de ambiente. Embutidos en la parte superior del tabique de yeso. | E26: 536 | F26: un | G26: 4 | I26: 0
B27: A.5.1.D4 | C27: IE4 | D27: Micrófono profesional inalámbrico para consultas | E27: 536 | F27: un | G27: 2 | I27: 0
B28: A.5.1.D5 | C28: IE4 | D28: Transmisor inalambrico con microfono solapero y audifono discreto, con control de volumen en transmisor. | E28: 536 | F28: un | G28: 2 | I28: 0
B29: A.5.1.D6 | C29: IE4 | D29: Parlantes de pared, de potencia 60 Watts | E29: 536 | F29: un | G29: 4 | I29: 0
B30: 2. MATERIALES, MONTAJE Y PUESTA EN MARCHA
B31: A - COMUNICACIÓN ORAL Y MÚSICA FUNCIONAL
B32: A.5.2.A1 | C32: IE4 | D32: Cables, cajas, ductos, conectores y otros materiales menores para la operatividad del sistema. En Subsuelo 2 | E32: 538 | F32: gl | G32: 1 | I32: 0
B33: A.5.2.A2 | C33: IE4 | D33: Cables, cajas, ductos, conectores y otros materiales menores para la operatividad del sistema. En Subsuelo 1 | E33: 538 | F33: gl | G33: 1 | I33: 0
B34: A.5.2.A3 | C34: IE4 | D34: Cables, cajas, ductos, conectores y otros materiales menores para la operatividad del sistema. En Planta Baja | E34: 538 | F34: gl | G34: 1 | I34: 0
B35: A.5.2.A4 | C35: IE4 | D35: Cables, cajas, ductos, conectores y otros materiales menores para la operatividad del sistema. En el Primer Piso | E35: 538 | F35: gl | G35: 1 | I35: 0
B36: A.5.2.A5 | C36: IE4 | D36: Cables, cajas, ductos, conectores y otros materiales menores para la operatividad del sistema. En el Segundo Piso | E36: 538 | F36: gl | G36: 1 | I36: 0
B37: A.5.2.A6 | C37: IE4 | D37: Cables, cajas, ductos, conectores y otros materiales menores para la operatividad del sistema. En el Tercer Piso | E37: 538 | F37: gl | G37: 1 | I37: 0
B38: A.5.2.A7 | C38: IE4 | D38: Cables, cajas, ductos, conectores y otros materiales menores para la operatividad del sistema. En el Cuarto Piso | E38: 538 | F38: gl | G38: 1 | I38: 0
B39: A.5.2.A8 | C39: IE4 | D39: Cables, cajas, ductos, conectores y otros materiales menores para la operatividad del sistema. En el Quinto Piso | E39: 538 | F39: gl | G39: 1 | I39: 0
B40: A.5.2.A9 | C40: IE4 | D40: Cables, cajas, ductos, conectores y otros materiales menores para la operatividad del sistema. En el Sexto Piso | E40: 538 | F40: gl | G40: 1 | I40: 0
B41: A.5.2.A10 | C41: IE4 | D41: Cables, cajas, ductos, conectores y otros materiales menores para la operatividad del sistema. En el Septimo Piso - Azotea | E41: 538 | F41: gl | G41: 1 | I41: 0
B42: A.5.2.A11 | C42: IE4 | D42: Asistencia técnica al integrador electrónico para la inclusión de los controladores del sistema de comunicación oral y musica funcional al BMS del Edificio | E42: 538 | F42: gl | G42: 1 | I42: 0
B43: A.5.2.A12 | C43: IE4 | D43: Instalación y puesta en marcha del sistema | E43: 538 | F43: gl | G43: 1 | I43: 0
B44: A.5.2.A13 | C44: IE4 | D44: Capacitación y adiestramiento; manuales de operación y mantenimiento | E44: 538 | F44: gl | G44: 1 | I44: 0
B45: B - SONORIZACIÓN DE LA SALA DE JUICIOS ORALES - SUM
B46: A.5.2.B1 | C46: IE4 | D46: Instalación de red de ductos, cables y conexiones; puesta en marcha del sistema en las Salas de Juicios Orales de Planta Baja | E46: 538 | F46: un | G46: 2 | I46: 0
B47: A.5.2.B2 | C47: IE4 | D47: Instalación de red de ductos, cables y conexiones; puesta en marcha del sistema en las Salas de Juicios Orales de Primer Piso | E47: 538 | F47: un | G47: 2 | I47: 0
B48: A.5.2.B3 | C48: IE4 | D48: Instalación de red de ductos, cables y conexiones; puesta en marcha del sistema en el SUM de planta Baja | E48: 538 | F48: un | G48: 1 | I48: 0
B49: A.5.2.B4 | C49: IE4 | D49: Interconexion entre de equipo amplificador de audio de las salas de Juicios Orales al sistema grabacion digital del circuito cerrado de Video en la sala de control. | E49: 538 | F49: un | G49: 4 | I49: 0
B50: A.5.2.B5 | C50: IE4 | D50: Tomas para microfonos | E50: 538 | F50: un | G50: 30 | I50: 0
B51: A.5.2.B6 | C51: IE4 | D51: Capacitación y adiestramiento; manuales de operación y mantenimiento | E51: 538 | F51: gl | G51: 1 | I51: 0
B52: C - SONORIZACIÓN Y GRABACION EN CAMARA GESSEL - AUDIO
B53: A.5.2.C1 | C53: IE4 | D53: Materiales de instalación: ductos, cables, conectores, fuentes de energía, accesorios. | E53: 538 | F53: gl | G53: 1 | I53: 0
B54: A.5.2.C2 | C54: IE4 | D54: Instalación y puesta en marcha del sistema | E54: 538 | F54: gl | G54: 1 | I54: 0
B55: A.5.2.C3 | C55: IE4 | D55: Capacitación y adiestramiento; manuales de operación y mantenimiento | E55: 538 | F55: gl | G55: 1 | I55: 0
B56: Sub Total A.5 - COMUNICACIÓN ORAL Y MUSICA FUNCIONAL | I56: =SUM(I10:I55) -> 0
B57: Son Guaraníes………………..

Sheet A.6 Telefonia
B1: CORTE SUPREMA DE JUSTICIA - PROGRAMA DE LAS NACIONES UNIDAS PARA EL DESARROLLO
B2: "PROGRAMA DE INFRAESTRUCTURA EDILICIA CSJ - PNUD"
B3: =+Resumen!B3 -> SDP/14311/172/2023 - CONSTRUCCION DE LAS OBRAS CIVILES, INSTALACIONES Y MANTENIMIENTO POSTERIOR - JUZGADOS DE 1° INSTANCIA DE FERNANDO DE LA MORA.
B5: A.6 PLANILLA DE CÓMPUTO MÉTRICO Y PRESUPUESTO - RED DE TELEFONÍA
B6: Ítem | C6: Cód. | D6: Descripción de Rubros | E6: OG | F6: Un | G6: Cant. | H6: Precio Unit. | I6: Precio Total
C7: E.T. | H7: Gs. Iva Incluido | I7: Gs. Iva Incluido
B8: 1. EQUIPOS
B9: A.6.1.1 | C9: IE5 | D9: Central Telefónica PBX digital modulable (sin bloqueo), con sistema de tarjetas, compatible IP, correo de voz, que incluye 1 gabinete principal y secundarios de capacidad ampliable; 1 Software de funciones correspondientes; 36 líneas externas troncales; 2 Puertos E1 ISDR PRI. 400 líneas internas (20%digital, 80% analogica); tres (3) puertos SD, RS-232, para conexión de computadora impresora y modens | E9: 536 | F9: gl | G9: 1 | I9: =+G9*H9 -> 0
B10: A.6.1.2 | C10: IE5 | D10: Banco de baterías | E10: 536 | F10: gl | G10: 1 | I10: =+G10*H10 -> 0
B11: A.6.1.3 | C11: IE5 | D11: Computadora personal, procesador de ocho nucleos ultima generacion y software original para operación y diagnóstico del sistema; monitor color LCD-LED de 21", formato 16:9; sistema operativo Windows 10 o superior. | E11: 543 | F11: un | G11: 1 | I11: 0
B12: A.6.1.4 | C12: IE5 | D12: Impresora laser tinta negra tipo HP | E12: 543 | F12: un | G12: 1 | I12: 0
B13: A.6.1.5 | C13: IE5 | D13: Fuente ininterrumpida de energía (UPS) para PC, de 2.000VA | E13: 543 | F13: un | G13: 1 | I13: 0
B14: A.6.1.6 | C14: IE5 | D14: Provisión y montaje de Consola de Operadora y accesorios. Auricular con micrófono. Pantalla de 4 líneas y 40 caracteres. 60 Teclas de identificación de llamadas en espera. Diez (10) teclas programables con 20 funciones adicionales para manejo de llamadas, búsqueda de personas, repetición, etc. | E14: 536 | F14: un | G14: 1 | I14: 0
B15: A.6.1.7 | C15: IE5 | D15: Modems de acceso. Enlace para troncales E1 Fibra optica Monomodo. Ver Especificaciones Tecnicas. | E15: 536 | F15: un | G15: 3 | I15: 0
B16: A.6.1.8 | C16: IE5 | D16: Provisión y montaje de Aparatos Telefónicos Digitales. Con pantalla de cristal líquido, full manos libres, tecla indicadora de mensaje en espera, y minimo 10 teclas programables con indicador visual de mínimo 10 internos ocupados libre/ocupado. | E16: 536 | F16: un | G16: 40 | I16: 0
B17: A.6.1.9 | C17: IE5 | D17: Provisión y Montaje de Aparatos Telefónicos Analógicos. Pantalla de cristal líquido. Con luz de mensaje en espera y teclas auxiliares flash, redial y retención, 10 teclas de discado directo. | E17: 536 | F17: un | G17: 250 | I17: 0
B18: A.6.1.10 | C18: IE5 | D18: Provisión y Montaje de Intercomunicadores. Boton pulsador de llamada, microfono y parlante | E18: 536 | F18: un | G18: 3 | I18: 0
B19: A.6.1.11 | C19: IE5 | D19: Pedestal metálico para intercomunicador en caño de hierro galvanizado esmaltado de 3" | E19: 536 | F19: un | G19: 6 | I19: 0
B20: A.6.1.12 | C20: IE5 | D20: Equipos y Licencias necesarias para la interconexion entre la nueva central telefonica y la central de asuncion. Conexión via VPN del poder judicial | E20: 536 | F20: gl | G20: 1 | I20: 0
B21: 2. MATERIALES, MONTAJE Y PUESTA EN MARCHA
B22: A.6.2.4 | C22: IE5 | D22: Conductor de 50 pares telefónicos de gabinete tecnico Subsuelo 1 a tablero Principal en Subsuelo 2 | E22: 522 | F22: ml | G22: 15 | I22: 0
B23: A.6.2.5 | C23: IE5 | D23: Conductor de 50 pares telefónicos de gabinete tecnico Planta Baja a tablero Principal en Subsuelo 2 | E23: 522 | F23: ml | G23: 20 | I23: 0
B24: A.6.2.6 | C24: IE5 | D24: Conductor de 20 pares telefónicos de gabinete tecnico Planta Baja Cafeteria y SUM a tablero Principal en Subsuelo 2 | E24: 522 | F24: ml | G24: 90 | I24: 0
B25: A.6.2.7 | C25: IE5 | D25: Conductor de 50 pares telefónicos de gabinete tecnico Primer Piso a tablero Principal en Subsuelo 2 | E25: 522 | F25: ml | G25: 25 | I25: 0
B26: A.6.2.8 | C26: IE5 | D26: Conductor de 70 pares telefónicos de gabinete tecnico Segundo Piso a tablero Principal en Subsuelo 2 | E26: 522 | F26: ml | G26: 30 | I26: 0
B27: A.6.2.9 | C27: IE5 | D27: Conductor de 70 pares telefónicos de gabinete tecnico Tercer Piso a tablero Principal en Subsuelo 2 | E27: 522 | F27: ml | G27: 35 | I27: 0
B28: A.6.2.10 | C28: IE5 | D28: Conductor de 70 pares telefónicos de gabinete tecnico Cuarto Piso a tablero Principal en Subsuelo 2 | E28: 522 | F28: ml | G28: 40 | I28: 0
B29: A.6.2.11 | C29: IE5 | D29: Conductor de 70 pares telefónicos de gabinete tecnico Quinto Piso a tablero Principal en Subsuelo 2 | E29: 522 | F29: ml | G29: 45 | I29: 0
B30: A.6.2.12 | C30: IE5 | D30: Conductor de 50 pares telefónicos de gabinete tecnico Sexto Piso a tablero Principal en Subsuelo 2 | E30: 522 | F30: ml | G30: 50 | I30: 0
B31: A.6.2.13 | C31: IE5 | D31: Conductor de 4 hilos - 2 pares telefónicos (Subsuelo 2) de toma a tablero con regletas secundarias de distribucion en gabinetes tecnicos de señales debiles. | E31: 522 | F31: gl | G31: 1 | I31: 0
B32: A.6.2.14 | C32: IE5 | D32: Conductor de 4 hilos - 2 pares telefónicos (Subsuelo 1) de toma a tablero con regletas secundarias de distribucion en gabinetes tecnicos de señales debiles. | E32: 522 | F32: gl | G32: 1 | I32: 0
B33: A.6.2.15 | C33: IE5 | D33: Conductor de 4 hilos - 2 pares telefónicos (Planta Baja) de toma a tablero con regletas secundarias de distribucion en gabinetes tecnicos de señales debiles. | E33: 522 | F33: gl | G33: 1 | I33: 0
B34: A.6.2.16 | C34: IE5 | D34: Conductor de 4 hilos - 2 pares telefónicos (Planta Baja Cafeteria y SUM) de toma a tablero con regletas secundarias de distribucion en gabinetes tecnicos de señales debiles. | E34: 522 | F34: gl | G34: 1 | I34: 0
B35: A.6.2.17 | C35: IE5 | D35: Conductor de 4 hilos - 2 pares telefónicos (Primer Piso) de toma a tablero con regletas secundarias de distribucion en gabinetes tecnicos de señales debiles. | E35: 522 | F35: gl | G35: 1 | I35: 0
B36: A.6.2.18 | C36: IE5 | D36: Conductor de 4 hilos - 2 pares telefónicos (Primer Piso Juzgados de Paz) de toma a tablero con regletas secundarias de distribucion en gabinetes tecnicos de señales debiles. | E36: 522 | F36: gl | G36: 1 | I36: 0
B37: A.6.2.19 | C37: IE5 | D37: Conductor de 4 hilos - 2 pares telefónicos (Segundo Piso) de toma a tablero con regletas secundarias de distribucion en gabinetes tecnicos de señales debiles. | E37: 522 | F37: gl | G37: 1 | I37: 0
B38: A.6.2.20 | C38: IE5 | D38: Conductor de 4 hilos - 2 pares telefónicos (Tercer Piso) de toma a tablero con regletas secundarias de distribucion en gabinetes tecnicos de señales debiles. | E38: 522 | F38: gl | G38: 1 | I38: 0
B39: A.6.2.21 | C39: IE5 | D39: Conductor de 4 hilos - 2 pares telefónicos (Cuarto Piso) de toma a tablero con regletas secundarias de distribucion en gabinetes tecnicos de señales debiles. | E39: 522 | F39: gl | G39: 1 | I39: 0
B40: A.6.2.22 | C40: IE5 | D40: Conductor de 4 hilos - 2 pares telefónicos (Quinto Piso) de toma a tablero con regletas secundarias de distribucion en gabinetes tecnicos de señales debiles. | E40: 522 | F40: gl | G40: 1 | I40: 0
B41: A.6.2.23 | C41: IE5 | D41: Conductor de 4 hilos - 2 pares telefónicos (Sexto Piso) de toma a tablero con regletas secundarias de distribucion en gabinetes tecnicos de señales debiles. | E41: 522 | F41: gl | G41: 1 | I41: 0
B42: A.6.2.24 | C42: IE5 | D42: Conductor de 4 hilos - 2 pares telefónicos (Septimo Piso - Azotea) de toma a tablero con regletas secundarias de distribucion en gabinetes tecnicos de señales debiles. | E42: 522 | F42: gl | G42: 1 | I42: 0
B43: A.6.2.25 | C43: IE5 | D43: Provisión y montaje de Tablero General de Distribución: caja y puertas metálicas; fondo de madera; doble regletas tipo Krone; toma de tierra y accesorios | E43: 522 | F43: un | G43: 1 | I43: 0
B44: A.6.2.26 | C44: IE5 | D44: Provisión y montaje de Tablero Secundario de Distribución, por Piso: caja y puertas metálicas; regletas tipo Krone; toma de tierra y accesorios | E44: 522 | F44: un | G44: 5 | I44: 0
B45: A.6.2.27 | C45: IE5 | D45: Sistema de protección primaria | E45: 522 | F45: un | G45: 1 | I45: 0
B46: A.6.2.28 | C46: IE5 | D46: Sistema de protección secundaria | E46: 522 | F46: un | G46: 5 | I46: 0
B47: A.6.2.29 | C47: IE5 | D47: Provision y montaje de tomas telefónicas RJ-11 Subsuelo 2 | E47: 522 | F47: un | G47: 8 | I47: 0
B48: A.6.2.30 | C48: IE5 | D48: Provision y montaje de tomas telefónicas RJ-11 Subsuelo 1 | E48: 522 | F48: un | G48: 29 | I48: 0
B49: A.6.2.31 | C49: IE5 | D49: Provision y montaje de tomas telefónicas RJ-11 Planta Baja | E49: 522 | F49: un | G49: 41 | I49: 0
B50: A.6.2.32 | C50: IE5 | D50: Provision y montaje de tomas telefónicas RJ-11 Planta Baja Cafeteria y SUM | E50: 522 | F50: un | G50: 2 | I50: 0
B51: A.6.2.33 | C51: IE5 | D51: Provision y montaje de tomas telefónicas RJ-11 1er. Piso | E51: 522 | F51: un | G51: 46 | I51: 0
B52: A.6.2.34 | C52: IE5 | D52: Provision y montaje de tomas telefónicas RJ-11 1er. Piso Juzgados de PAZ | E52: 522 | F52: un | G52: 12 | I52: 0
B53: A.6.2.35 | C53: IE5 | D53: Provision y montaje de tomas telefónicas RJ-11 2do. Piso | E53: 522 | F53: un | G53: 66 | I53: 0
B54: A.6.2.36 | C54: IE5 | D54: Provision y montaje de tomas telefónicas RJ-11 3er. Piso | E54: 522 | F54: un | G54: 50 | I54: 0
B55: A.6.2.37 | C55: IE5 | D55: Provision y montaje de tomas telefónicas RJ-11 4to. Piso | E55: 522 | F55: un | G55: 50 | I55: 0
B56: A.6.2.38 | C56: IE5 | D56: Provision y montaje de tomas telefónicas RJ-11 5to. Piso | E56: 522 | F56: un | G56: 50 | I56: 0
B57: A.6.2.39 | C57: IE5 | D57: Provision y montaje de tomas telefónicas RJ-11 6to. Piso | E57: 522 | F57: un | G57: 26 | I57: 0
B58: A.6.2.40 | C58: IE5 | D58: Provision y montaje de tomas telefónicas RJ-11 7mo. Piso Azotea | E58: 522 | F58: un | G58: 6 | I58: 0
B59: A.6.2.41 | C59: IE5 | D59: Accesorios de montaje y materiales menores | E59: 522 | F59: gl | G59: 1 | I59: 0
B60: A.6.2.42 | C60: IE5 | D60: Montaje de la red de telefonía Subsuelo 2 | E60: 522 | F60: gl | G60: 1 | I60: 0
B61: A.6.2.43 | C61: IE5 | D61: Montaje de la red de telefonía Subsuelo 1 | E61: 522 | F61: gl | G61: 1 | I61: 0
B62: A.6.2.44 | C62: IE5 | D62: Montaje de la red de telefonía Planta Baja | E62: 522 | F62: gl | G62: 1 | I62: 0
B63: A.6.2.45 | C63: IE5 | D63: Montaje de la red de telefonía Planta Baja Cafeteria y SUM | E63: 522 | F63: gl | G63: 1 | I63: 0
B64: A.6.2.46 | C64: IE5 | D64: Montaje de la red de telefonía 1er. Piso | E64: 522 | F64: gl | G64: 1 | I64: 0
B65: A.6.2.47 | C65: IE5 | D65: Montaje de la red de telefonía 1er. Piso Juzgados de PAZ | E65: 522 | F65: gl | G65: 1 | I65: 0
B66: A.6.2.48 | C66: IE5 | D66: Montaje de la red de telefonía 2do. Piso | E66: 522 | F66: gl | G66: 1 | I66: 0
B67: A.6.2.49 | C67: IE5 | D67: Montaje de la red de telefonía 3er. Piso | E67: 522 | F67: gl | G67: 1 | I67: 0
B68: A.6.2.50 | C68: IE5 | D68: Montaje de la red de telefonía 4to. Piso | E68: 522 | F68: gl | G68: 1 | I68: 0
B69: A.6.2.51 | C69: IE5 | D69: Montaje de la red de telefonía 5to. Piso | E69: 522 | F69: gl | G69: 1 | I69: 0
B70: A.6.2.52 | C70: IE5 | D70: Montaje de la red de telefonía 6to. Piso | E70: 522 | F70: gl | G70: 1 | I70: 0
B71: A.6.2.53 | C71: IE5 | D71: Montaje de la red de telefonía 7mo. Piso Azotea | E71: 522 | F71: gl | G71: 1 | I71: 0
B72: A.6.2.54 | C72: IE5 | D72: Conexión de troncales | E72: 522 | F72: gl | G72: 1 | I72: 0
B73: A.6.2.55 | C73: IE5 | D73: Sistemas de Acceso. Instalacion y puesta en marcha de modems de interconexión para troncales E1. Ver Especificaciones Tecnicas. | E73: 522 | F73: gl | G73: 1 | I73: 0
B74: A.6.2.56 | C74: IE5 | D74: Programación general y puesta en funcionamiento del sistema | E74: 522 | F74: gl | G74: 1 | I74: =+G74*H74 -> 0
B75: A.6.2.57 | C75: IE5 | D75: Verificación del sistema de puesta a tierra: mediciones y estudios | E75: 522 | F75: gl | G75: 1 | I75: 0
B76: A.6.2.58 | C76: IE5 | D76: Capacitacion y adiestramiento del uso; manuales de operación y mantenimiento | E76: 522 | F76: gl | G76: 1 | I76: 0
B77: Sub Total A.6 - RED DE TELEFONIA | I77: =SUM(I9:I76) -> 0
B78: Son Guaraníes………………..

Sheet A.7 Datos
B1: CORTE SUPREMA DE JUSTICIA - PROGRAMA DE LAS NACIONES UNIDAS PARA EL DESARROLLO
B2: "PROGRAMA DE INFRAESTRUCTURA EDILICIA CSJ - PNUD"
B3: =+Resumen!B3 -> SDP/14311/172/2023 - CONSTRUCCION DE LAS OBRAS CIVILES, INSTALACIONES Y MANTENIMIENTO POSTERIOR - JUZGADOS DE 1° INSTANCIA DE FERNANDO DE LA MORA.
B5: A.7 PLANILLA DE CÓMPUTO MÉTRICO Y PRESUPUESTO - RED DE DATOS
B6: Ítem | C6: Cód. | D6: Descripción de Rubros | E6: OG | F6: Un | G6: Cant. | H6: Precio Unit. | I6: Precio Total
C7: E.T. | H7: Gs. Iva Incluido | I7: Gs. Iva Incluido
B8: 1. EQUIPOS
B9: A.7.1.1 | C9: IE6 | D9: Switch Core o backbone con 24 puertos SFPs opticos 1000 BaseLX. | E9: 543 | F9: un | G9: 1 | I9: =+G9*H9 -> 0
B10: A.7.1.2 | C10: IE6 | D10: Switch de 48 puertos, con tarjeta de Stack de 10/100/1000 y conexión con fibra óptica minimo 2 | E10: 543 | F10: un | G10: 17 | I10: =+G10*H10 -> 0
B11: A.7.1.3 | C11: IE6 | D11: Switch de 24 puertos, con tarjeta de Stack de 10/100/1000 y conexión con fibra óptica minimo 2 | E11: 543 | F11: un | G11: 1 | I11: 0
B12: A.7.1.4 | C12: IE6 | D12: Equipo de seguridad VPN con funciones de Firewall y Router | E12: 543 | F12: un | G12: 1 | I12: 0
B13: A.7.1.5 | C13: IE6 | D13: Equipo de Acceso Inalambrico - Access Point | E13: 543 | F13: un | G13: 31 | I13: 0
B14: A.7.1.6 | C14: IE7 | D14: Fuente ininterrumpida de energía (UPS) de 2.200VA para switch en pisos | E14: 543 | F14: un | G14: 10 | I14: 0
B15: 2. MATERIALES, MONTAJE Y PUESTA EN MARCHA
B16: A.7.2.1 | C16: IE6 | D16: Provision y montaje de Racks para equipos, servidores y concentradores. Altura de 42U, profundidad 700mm., ancho 600mm., Deberá poseer una capacidad de carga estática de por lo menos 1000 Kg. con puertas frontales y traseras micro perforadas, en un porcentaje mínimo de 60%. Con barra de puesta a tierra y regleta de alimentacion electrica. | E16: 541 | F16: un | G16: 4 | I16: 0
B17: A.7.2.2 | C17: IE6 | D17: Rack abierto con dos parantes de 42U para gabinetes tecnicos en pisos, con cobertos de cables de manera lateral. | E17: 541 | F17: un | G17: 8 | I17: 0
B18: A.7.2.3 | C18: IE6 | D18: Rack cerrado de 4 parantes 5U para montaje en pared de 19", puerta frontal de vidrio templado, laterales superir e inferior desmontables y ventildor de refirgeracion. Todo el conjunto debera estar aterrado. Ubicado en el gabinete tecnico de planta baja SUM. | E18: 543 | F18: un | G18: 1 | I18: 0
B19: A.7.2.4 | C19: IE6 | D19: Patch Panel - 24 puertos - Cat. 6a | E19: 543 | F19: un | G19: =+(G10*2)+G11 -> 35 | I19: 0
B20: A.7.2.5 | C20: IE6 | D20: Cable UTP - Cat. 6a | E20: 543 | F20: ml | G20: =+(725)*50 -> 36250 | I20: 0
B21: A.7.2.6 | C21: IE6 | D21: Interconexion con fibra optica tipo monomodo redundante entre switches de piso y el core en sala de control. Mínimo 12 pelos | E21: 543 | F21: ml | G21: 700 | I21: 0
B22: A.7.2.7 | C22: IE6 | D22: DIO (distribuidor interno optico) de fibra en terminaciones, dos terminales por equipo. Rackeable. Ubicacion en la parte superior del Rack. | E22: 543 | F22: un | G22: 10 | I22: 0
B23: A.7.2.8 | C23: IE6 | D23: Patch cord de fibra optica | E23: 543 | F23: un | G23: 40 | I23: 0
B24: A.7.2.9 | C24: IE6 | D24: Tomas con insertos RJ45 Cat. 6a | E24: 543 | F24: un | G24: =725-G25 -> 701 | I24: 0
B25: A.7.2.10 | C25: IE6 | D25: Tomas con insertos RJ45 para montaje en riel DIN, en salas técnicas Cat. 6a | E25: 543 | F25: un | G25: 24 | I25: 0
B26: A.7.2.11 | C26: IE6 | D26: Patch cords - Cat. 6a | E26: 543 | F26: un | G26: =+G19*24 -> 840 | I26: 0
B27: A.7.2.12 | C27: IE6 | D27: Line cords - Cat. 6a | E27: 543 | F27: un | G27: =+G24+G25 -> 725 | I27: 0
B28: A.7.2.13 | C28: IE6 | D28: Materiales de sujeción | E28: 543 | F28: gl | G28: 1 | I28: 0
B29: A.7.2.14 | C29: IE6 | D29: Materiales menores y accesorios para la red de categoria 6A y de fibra optica. | E29: 543 | F29: gl | G29: 1 | I29: 0
B30: A.7.2.15 | C30: IE6 | D30: Asistencia técnica al integrador electrónico para la inclusión de la red del BMS del Edificio a la red de datos. | E30: 543 | F30: gl | G30: 1 | I30: 0
B31: A.7.2.16 | C31: IE6 | D31: Mano de Obra de la instalación | E31: 543 | F31: gl | G31: 1 | I31: 0
B32: Sub Total A.7 - RED DE DATOS | I32: =SUM(I9:I31) -> 0
B33: Son Guaraníes………………..

Sheet A.8 Ascensores
B1: CORTE SUPREMA DE JUSTICIA - PROGRAMA DE LAS NACIONES UNIDAS PARA EL DESARROLLO
B2: "PROGRAMA DE INFRAESTRUCTURA EDILICIA CSJ - PNUD"
B3: =+Resumen!B3 -> SDP/14311/172/2023 - CONSTRUCCION DE LAS OBRAS CIVILES, INSTALACIONES Y MANTENIMIENTO POSTERIOR - JUZGADOS DE 1° INSTANCIA DE FERNANDO DE LA MORA.
B5: A.8 PLANILLA DE CÓMPUTO MÉTRICO Y PRESUPUESTO - ASCENSORES
B6: Ítem | C6: Cód. | D6: Descripción de Rubros | E6: OG | F6: Un | G6: Cant. | H6: Precio Unit. | I6: Precio Total
C7: E.T. | H7: Gs. Iva Incluido | I7: Gs. Iva Incluido
B8: 1. EQUIPOS
B9: A - Ascensor para Funcionarios
B10: A.8.1.A1 | C10: IE7 | D10: Provisión de ascensor sin sala de maquinas para 800Kg / 10 personas, velocidad 60m/minuto, 9 paradas, 9 niveles (4m. por nivel). Componentes: motor; módulo de control; cabina; guías; cabos; contrapesos; puertas; marcos y umbrales; software de monitoreo; accesorios | E10: 522 | F10: un | G10: 2 | I10: =+G10*H10 -> 0
B11: A.8.1.A2 | C11: IE7 | D11: Intercomunicador, entre cabina y sala de control | E11: 522 | F11: un | G11: 2 | I11: =+G11*H11 -> 0
B12: A.8.1.A3 | C12: IE7 | D12: Sistema de proteccion electrica, supresor de sobretensiones transitorias y de armonicos para cerebro electronico, Tipo SineTamer. | E12: 522 | F12: un | G12: 2 | I12: 0
B13: A.8.1.A4 | C13: IE7 | D13: Kit de repuestos | E13: 522 | F13: gl | G13: 1 | I13: 0
B14: B - Ascensor para Publico
B15: A.8.1.B1 | C15: IE7 | D15: Provisión de ascensor sin sala de maquinas para 800Kg / 10 personas, velocidad 60m/minuto, 7 paradas, 7 niveles (4m. por nivel). Componentes: motor; módulo de control; cabina; guías; cabos; contrapesos; puertas; marcos y umbrales; software de monitoreo; accesorios | E15: 522 | F15: un | G15: 2 | I15: 0
B16: A.8.1.B2 | C16: IE7 | D16: Intercomunicador, entre cabina y sala de control | E16: 522 | F16: un | G16: 2 | I16: 0
B17: A.8.1.B3 | C17: IE7 | D17: Sistema de proteccion electrica, supresor de sobretensiones transitorias y de armonicos para cerebro electronico, Tipo SineTamer. | E17: 522 | F17: un | G17: 2 | I17: 0
B18: A.8.1.B4 | C18: IE7 | D18: Kit de repuestos | E18: 522 | F18: gl | G18: 1 | I18: 0
B19: C - Ascensor para Imputados Adolescentes
B20: A.8.1.C1 | C20: IE7 | D20: Provisión de ascensor sin sala de maquinas para 600Kg / 8 personas, velocidad 60m/minuto, 3 paradas, 3 niveles (4m. por nivel). Componentes: motor; módulo de control; cabina; guías; cabos; contrapesos; puertas; marcos y umbrales; software de monitoreo; accesorios | E20: 522 | F20: un | G20: 1 | I20: 0
B21: A.8.1.C2 | C21: IE7 | D21: Intercomunicador, entre cabina y sala de control | E21: 522 | F21: un | G21: 1 | I21: 0
B22: A.8.1.C3 | C22: IE7 | D22: Sistema de proteccion electrica, supresor de sobretensiones transitorias y de armonicos para cerebro electronico, Tipo SineTamer. | E22: 522 | F22: un | G22: 1 | I22: 0
B23: A.8.1.C4 | C23: IE7 | D23: Kit de repuestos | E23: 522 | F23: gl | G23: 1 | I23: 0
B24: D - Ascensor para Imputados Adultos
B25: A.8.1.D1 | C25: IE7 | D25: Provisión de ascensor sin sala de maquinas para 600Kg / 8 personas, velocidad 60m/minuto, 6 paradas, 6 niveles (4m. por nivel). Componentes: motor; módulo de control; cabina; guías; cabos; contrapesos; puertas; marcos y umbrales; software de monitoreo; accesorios | E25: 522 | F25: un | G25: 1 | I25: 0
B26: A.8.1.D2 | C26: IE7 | D26: Intercomunicador, entre cabina y sala de control | E26: 522 | F26: un | G26: 1 | I26: 0
B27: A.8.1.D3 | C27: IE7 | D27: Sistema de proteccion electrica, supresor de sobretensiones transitorias y de armonicos para cerebro electronico, Tipo SineTamer. | E27: 522 | F27: un | G27: 1 | I27: 0
B28: A.8.1.D4 | C28: IE7 | D28: Kit de repuestos | E28: 522 | F28: gl | G28: 1 | I28: 0
B29: 2. MATERIALES, MONTAJE Y PUESTA EN MARCHA
B30: A - Ascensor para Funcionarios
B31: A.8.2.A1 | C31: IE7 | D31: Trabajos de adecuación de las estructuras (elementos metálicos adicionales a la caja; perforaciones en losas; ganchos) | E31: 522 | F31: un | G31: 2 | I31: 0
B32: A.8.2.A2 | C32: IE7 | D32: Adecuación de instalación eléctrica. Incluye provisión y montaje de canaletas de chapa, tableros, interruptores eléctricos y conductores en piso, desde el alimentador existente en dicho local para los ascensores de funcionarios. Iluminacion interna y tomas electricas. | E32: 522 | F32: un | G32: 2 | I32: 0
B33: A.8.2.A3 | C33: IE7 | D33: Montaje e instalacion de equipos y accesorios por piso y por ascensor. | E33: 522 | F33: un | G33: 18 | I33: 0
B34: A.8.2.A4 | C34: IE7 | D34: Montaje de guías, cabina y accesorios. | E34: 522 | F34: un | G34: 2 | I34: 0
B35: A.8.2.A5 | C35: IE7 | D35: Montaje de accesorios en pisos, soportes y puertas de piso. | E35: 522 | F35: un | G35: 18 | I35: 0
B36: A.8.2.A6 | C36: IE7 | D36: Puesta en marcha de los ascensores | E36: 522 | F36: un | G36: 2 | I36: 0
B37: B - Ascensor para Publico
B38: A.8.2.B1 | C38: IE7 | D38: Trabajos de adecuación de las estructuras (elementos metálicos adicionales a la caja; perforaciones en losas; ganchos) | E38: 522 | F38: un | G38: 2 | I38: 0
B39: A.8.2.B2 | C39: IE7 | D39: Adecuación de instalación eléctrica. Incluye provisión y montaje de canaletas de chapa, tableros, interruptores eléctricos y conductores en piso, desde el alimentador existente en dicho local para los ascensores de funcionarios. Iluminacion interna y tomas electricas. | E39: 522 | F39: un | G39: 2 | I39: 0
B40: A.8.2.B3 | C40: IE7 | D40: Montaje e instalacion de equipos y accesorios por piso y por ascensor. | E40: 522 | F40: un | G40: 14 | I40: 0
B41: A.8.2.B4 | C41: IE7 | D41: Montaje de guías, cabina y accesorios. | E41: 522 | F41: un | G41: 2 | I41: 0
B42: A.8.2.B5 | C42: IE7 | D42: Montaje de accesorios en pisos, soportes y puertas de piso. | E42: 522 | F42: un | G42: 14 | I42: 0
B43: A.8.2.B6 | C43: IE7 | D43: Puesta en marcha de los ascensores | E43: 522 | F43: un | G43: 2 | I43: 0
B44: C - Ascensor para Imputados Adolescentes
B45: A.8.2.C1 | C45: IE7 | D45: Trabajos de adecuación de las estructuras (elementos metálicos adicionales a la caja; perforaciones en losas; ganchos) | E45: 522 | F45: un | G45: 1 | I45: 0
B46: A.8.2.C2 | C46: IE7 | D46: Adecuación de instalación eléctrica. Incluye provisión y montaje de canaletas de chapa, tableros, interruptores eléctricos y conductores en piso, desde el alimentador existente en dicho local para los ascensores de funcionarios. Iluminacion interna y tomas electricas. | E46: 522 | F46: un | G46: 1 | I46: 0
B47: A.8.2.C3 | C47: IE7 | D47: Montaje e instalacion de equipos y accesorios por piso y por ascensor. | E47: 522 | F47: un | G47: 3 | I47: 0
B48: A.8.2.C4 | C48: IE7 | D48: Montaje de guías, cabina y accesorios. | E48: 522 | F48: un | G48: 1 | I48: 0
B49: A.8.2.C5 | C49: IE7 | D49: Montaje de accesorios en pisos, soportes y puertas de piso. | E49: 522 | F49: un | G49: 3 | I49: 0
B50: A.8.2.C6 | C50: IE7 | D50: Puesta en marcha de los ascensores | E50: 522 | F50: un | G50: 1 | I50: 0
B51: D - Ascensor para Imputados Adultos
B52: A.8.2.D1 | C52: IE7 | D52: Trabajos de adecuación de las estructuras (elementos metálicos adicionales a la caja; perforaciones en losas; ganchos) | E52: 522 | F52: un | G52: 1 | I52: 0
B53: A.8.2.D2 | C53: IE7 | D53: Adecuación de instalación eléctrica. Incluye provisión y montaje de canaletas de chapa, tableros, interruptores eléctricos y conductores en piso, desde el alimentador existente en dicho local para los ascensores de funcionarios. Iluminacion interna y tomas electricas. | E53: 522 | F53: un | G53: 1 | I53: 0
B54: A.8.2.D3 | C54: IE7 | D54: Montaje e instalacion de equipos y accesorios por piso y por ascensor. | E54: 522 | F54: un | G54: 6 | I54: 0
B55: A.8.2.D4 | C55: IE7 | D55: Montaje de guías, cabina y accesorios. | E55: 522 | F55: un | G55: 1 | I55: 0
B56: A.8.2.D5 | C56: IE7 | D56: Montaje de accesorios en pisos, soportes y puertas de piso. | E56: 522 | F56: un | G56: 6 | I56: 0
B57: A.8.2.D6 | C57: IE7 | D57: Puesta en marcha de los ascensores | E57: 522 | F57: un | G57: 1 | I57: 0
B58: E -Sala de Control y Otros
B59: A.8.2.E1 | C59: IE7 | D59: Instalación de software de monitoreo en computadora | E59: 522 | F59: gl | G59: 1 | I59: 0
B60: A.8.2.E2 | C60: IE7 | D60: Instalación de intercomunicadores | E60: 522 | F60: un | G60: 6 | I60: 0
B61: A.8.2.E3 | C61: IE7 | D61: Interconexión de cámaras de vídeo, cableado estructurado en cable movil para conexión de camara de la cabina. | E61: 522 | F61: un | G61: 6 | I61: 0
B62: A.8.2.E4 | C62: IE7 | D62: Asistencia técnica al integrador electrónico para la inclusión de los controladores de los ascensores al BMS del Edificio | E62: 522 | F62: gl | G62: 1 | I62: 0
B63: A.8.2.E5 | C63: IE7 | D63: Manuales de operación y mantenimiento en idioma español | E63: 522 | F63: gl | G63: 1 | I63: 0
B64: A.8.2.E6 | C64: IE7 | D64: Capacitación a funcionarios para operación y control del sistema | E64: 522 | F64: gl | G64: 1 | I64: 0
B65: Sub Total A.8 - ASCENSORES | I65: =SUM(I10:I64) -> 0
B66: Son Guaraníes………………..

Sheet A.9 Generador
B1: CORTE SUPREMA DE JUSTICIA - PROGRAMA DE LAS NACIONES UNIDAS PARA EL DESARROLLO
B2: "PROGRAMA DE INFRAESTRUCTURA EDILICIA CSJ - PNUD"
B3: =+Resumen!B3 -> SDP/14311/172/2023 - CONSTRUCCION DE LAS OBRAS CIVILES, INSTALACIONES Y MANTENIMIENTO POSTERIOR - JUZGADOS DE 1° INSTANCIA DE FERNANDO DE LA MORA.
B5: A.9 PLANILLA DE CÓMPUTO MÉTRICO Y PRESUPUESTO - GENERADOR
B6: Ítem | C6: Cód. | D6: Descripción de Rubros | E6: OG | F6: Un | G6: Cant. | H6: Precio Unit. | I6: Precio Total
C7: E.T. | H7: Gs. Iva Incluido | I7: Gs. Iva Incluido
B8: 1. EQUIPOS
B9: A.9.1.1 | C9: IE8 | D9: Equipo generador eléctrico para emergencia. Motor diesel de inyección directa. Generador síncrono trifásico. Potencia: 750 KVA en Standby. Tensión: 380V / 220 V. Frecuencia: 50Hz. 3 Fases y Neutro (conexión estrella). Módulo de control, monitoreo y protección. Conjunto integrado incluyendo tanque de combustible sobre chasis de apoyo antivibratorio. Sistema de Insonorizacion de fabrica | E9: 533 | F9: un | G9: 1 | I9: =+G9*H9 -> 0
B10: A.9.1.2 | C10: IE8 | D10: Provisión de un gateway a algún protocolo de comunicación abierto, KNX serial o IP, BACnet IP o Modbus TCP/IP, para integrar el módulo de control al BMS | E10: 533 | F10: un | G10: 1 | I10: =+G10*H10 -> 0
B11: A.9.1.3 | C11: IE8 | D11: Placa de control y monitoreo de funcionamiento del generador desde el gabitete tecnico de la Sala de Control | E11: 533 | F11: gl | G11: 1 | I11: 0
B12: A.9.1.4 | C12: IE8 | D12: Cargador de batería permanente conectado a red de 220V | E12: 533 | F12: un | G12: 1 | I12: 0
B13: A.9.1.5 | C13: IE8 | D13: Kit de repuestos | E13: 533 | F13: gl | G13: 1 | I13: 0
B14: A.9.1.6 | C14: IE8 | D14: Tablero de transferencia automática de 1000A | E14: 533 | F14: un | G14: 1 | I14: 0
B15: 2. MATERIALES, MONTAJE Y PUESTA EN MARCHA
B16: A.9.2.1 | C16: IE8 | D16: Tubería de escape de humos | E16: 533 | F16: gl | G16: 1 | I16: 0
B17: A.9.2.2 | C17: IE8 | D17: Interconexiones eléctricas | E17: 533 | F17: gl | G17: 1 | I17: 0
B18: A.9.2.3 | C18: IE8 | D18: Asistencia técnica al integrador electrónico para la inclusión de los controladores del generador al BMS del Edificio | E18: 533 | F18: un | G18: 1 | I18: 0
B19: A.9.2.4 | C19: IE8 | D19: Montaje e instalación del grupo generador | E19: 533 | F19: gl | G19: 1 | I19: 0
B20: A.9.2.5 | C20: IE8 | D20: Manuales de operación y mantenimiento en idioma español | E20: 533 | F20: gl | G20: 1 | I20: 0
B21: A.9.2.6 | C21: IE8 | D21: Capacitación a funcionarios para operación y control del sistema | E21: 533 | F21: gl | G21: 1 | I21: 0
B22: Sub Total A.9 - GENERADOR | I22: =SUM(I9:I21) -> 0
B23: Son Guaraníes………………..
